Workbook

Sheet DC
C1: DC Race
A2: Futurity | B2: Der | C2: R/O | D2: BBR | E2: Draw | F2: Rider Name | G2: Horse Name | H2: Time | I2: Placing | J2: Money Earned
C3: X | E3: 10 | F3: Kelly Bruner | G3: PLL Shadrach | H3: 15.729 | I3: 1st
C4: X | E4: 6 | F4: Elizabeth Sbrusch | G4: SJR Diamonds Cash | H4: 15.878 | I4: 2nd
C5: X | E5: 2 | F5: Stephanie Fryar | G5: Some Streakin French | H5: 15.905 | I5: 3rd
C6: X | E6: 9 | F6: Jenny Zant | G6: Raise Me Ta Fame | H6: 15.937 | I6: 4th
C7: X | E7: 5 | F7: Tillar King | G7: Dashing Canelo | H7: 16.16 | I7: 5th
C8: X | E8: 8 | F8: Jimmie Smith | G8: Manny Dot Com | H8: 16.243
C9: X | E9: 4 | F9: JJ Baldwin | G9: JJJ Paddy | H9: 16.397
C10: X | E10: 3 | F10: Casey Doebler Hammons | G10: BH Trip Ta Fame | H10: 16.797
C11: X | E11: 7 | F11: Kylee Scribner | G11: Firewater Cartel | H11: 915.63
C12: X | E12: 11 | F12: Lisa Thornton | G12: Straight Toasted | H12: 915.693
C13: X | E13: 1 | F13: Martha Wright | G13: JL Fourtafame | H13: 916.229
E14: 12 | F14: Sissy Winn | H14: scratch
E15: 13
E16: 14
E17: 15
E18: 16
E19: 17
E20: 18
E21: 19
E22: 20
E23: 21
E24: 23
E25: 24
E26: 25
E27: 26
E28: 27
E29: 28
E30: 29
E31: 30
E32: 31
E33: 32
E34: 33
E35: 34
E36: 35
E37: 36
E38: 37
E39: 38
E40: 39
E41: 40
E42: 41
E43: 42
E44: 43
E45: 44
E46: 45
E47: 46
E48: 47
E49: 48
E50: 49
E51: 50
E52: 51
E53: 52
E54: 53
E55: 54
E56: 55
E57: 56
E58: 57
E59: 58
E60: 59
E61: 60
E62: 61
E63: 62
E64: 63
E65: 64
E66: 65
E67: 66
E68: 67
E69: 68
E70: 69
E71: 70
E72: 71
E73: 72
E74: 73
E75: 74
E76: 75
E77: 76
E78: 77
E79: 78
E80: 79
E81: 80
E82: 81
E83: 82
E84: 83
E85: 84
E86: 85
E87: 86
E88: 87
E89: 88
E90: 89
E91: 90
E92: 91
E93: 92
E94: 93
E95: 94
E96: 95
E97: 96
E98: 97
E99: 98
E100: 99
E101: 100
E102: 101
E103: 102
E104: 103
E105: 104
E106: 105
E107: 106
E108: 107
E109: 108
E110: 109
E111: 110
E112: 111
E113: 112
E114: 113
E115: 114
E116: 115
E117: 116
E118: 117
E119: 118
E120: 119
E121: 120
E122: 121
E123: 122
E124: 123
E125: 124
E126: 125
E127: 126
E128: 127
E129: 128
E130: 129
E131: 130
E132: 131
E133: 132
E134: 133
E135: 134
E136: 135
E137: 136
E138: 137
E139: 138
E140: 139
E141: 140
E142: 141
E143: 142
E144: 143
E145: 144
E146: 145
E147: 146
E148: 147
E149: 148
E150: 149
E151: 150
E152: 151
E153: 152
E154: 153
E155: 154
E156: 155
E157: 156
E158: 157
E159: 158
E160: 159
E161: 160
E162: 161
E163: 162
E164: 163
E165: 164
E166: 165
E167: 166
E168: 167
E169: 168
E170: 169
E171: 170
E172: 171
E173: 172
E174: 173
E175: 174
E176: 175
E177: 176
E178: 177
E179: 178
E180: 179
E181: 180
E182: 181
E183: 182
E184: 183
E185: 184
E186: 185
E187: 186
E188: 187
E189: 188
E190: 189
E191: 190
E192: 191
E193: 192
E194: 193
E195: 194
E196: 195
E197: 196
E198: 197
E199: 198
E200: 199
... 101 more rows

Sheet Permit
C1: Permit Race
A2: Futurity | B2: Der | C2: R/O | D2: BBR | E2: Draw | F2: Rider Name | G2: Horse Name | H2: Time | I2: Placing | J2: Money Earned
C3: X | E3: 10 | F3: Mindy Hollolway | G3: Heavens Got Credit | H3: 15.714 | I3: 1st | J3: 377
C4: X | E4: 16 | F4: Denny Ralls | G4: SV Southern Comfort | H4: 15.873 | I4: 2nd | J4: 312
C5: X | E5: 11 | F5: Merritt Potter | G5: Si Can Too | H5: 16.006 | I5: 3rd | J5: 247
C6: X | E6: 6 | F6: Lindey Stevens | G6: Miss America Fame | H6: 16.107 | I6: 4th | J6: 182
C7: X | E7: 8 | F7: Kendall Kennedy | G7: Oh No Frosty | H7: 16.142 | I7: 5th | J7: 117
C8: X | E8: 9 | F8: Lauren Merica | G8: GoGo Romeo | H8: 16.32 | I8: 6th | J8: 65
C9: X | E9: 5 | F9: Mandi Cleveland | G9: Little Bit Of Load | H9: 16.364
C10: X | E10: 13 | F10: Carlie Conaway | G10: Sparkling Kitty Cat | H10: 16.685
E11: 1 | F11: Megan Wilson | G11: Rainy Day Special | H11: 16.751
C12: X | E12: 15 | F12: Jamie Cramblit | G12: Pipers Magic | H12: 16.86
C13: X | E13: 14 | F13: Cindy Masters | G13: Frenchmans Boone Dox | H13: 16.977
C14: X | E14: 4 | F14: Allie Zant | G14: Return Of A Hero | H14: 17.139
C15: X | E15: 7 | F15: Perry McMillan | G15: Mac | H15: 17.642
C16: X | E16: 2 | F16: Savannah Hayes | G16: JE Aint Smashed Yet | H16: 916.331
C17: X | E17: 12 | F17: Karen Hansen | G17: Be Tuff Kat | H17: 916.516
C18: x | E18: 3 | F18: Megan Epperson | G18: Kama Woodbridge | H18: 916.684
E19: 17
E20: 18
E21: 19
E22: 20
E23: 21
E24: 23
E25: 24
E26: 25
E27: 26
E28: 27
E29: 28
E30: 29
E31: 30
E32: 31
E33: 32
E34: 33
E35: 34
E36: 35
E37: 36
E38: 37
E39: 38
E40: 39
E41: 40
E42: 41
E43: 42
E44: 43
E45: 44
E46: 45
E47: 46
E48: 47
E49: 48
E50: 49
E51: 50
E52: 51
E53: 52
E54: 53
E55: 54
E56: 55
E57: 56
E58: 57
E59: 58
E60: 59
E61: 60
E62: 61
E63: 62
E64: 63
E65: 64
E66: 65
E67: 66
E68: 67
E69: 68
E70: 69
E71: 70
E72: 71
E73: 72
E74: 73
E75: 74
E76: 75
E77: 76
E78: 77
E79: 78
E80: 79
E81: 80
E82: 81
E83: 82
E84: 83
E85: 84
E86: 85
E87: 86
E88: 87
E89: 88
E90: 89
E91: 90
E92: 91
E93: 92
E94: 93
E95: 94
E96: 95
E97: 96
E98: 97
E99: 98
E100: 99
E101: 100
E102: 101
E103: 102
E104: 103
E105: 104
E106: 105
E107: 106
E108: 107
E109: 108
E110: 109
E111: 110
E112: 111
E113: 112
E114: 113
E115: 114
E116: 115
E117: 116
E118: 117
E119: 118
E120: 119
E121: 120
E122: 121
E123: 122
E124: 123
E125: 124
E126: 125
E127: 126
E128: 127
E129: 128
E130: 129
E131: 130
E132: 131
E133: 132
E134: 133
E135: 134
E136: 135
E137: 136
E138: 137
E139: 138
E140: 139
E141: 140
E142: 141
E143: 142
E144: 143
E145: 144
E146: 145
E147: 146
E148: 147
E149: 148
E150: 149
E151: 150
E152: 151
E153: 152
E154: 153
E155: 154
E156: 155
E157: 156
E158: 157
E159: 158
E160: 159
E161: 160
E162: 161
E163: 162
E164: 163
E165: 164
E166: 165
E167: 166
E168: 167
E169: 168
E170: 169
E171: 170
E172: 171
E173: 172
E174: 173
E175: 174
E176: 175
E177: 176
E178: 177
E179: 178
E180: 179
E181: 180
E182: 181
E183: 182
E184: 183
E185: 184
E186: 185
E187: 186
E188: 187
E189: 188
E190: 189
E191: 190
E192: 191
E193: 192
E194: 193
E195: 194
E196: 195
E197: 196
E198: 197
E199: 198
E200: 199
... 101 more rows

Sheet Open
A2: REO November 2021
A3: FUT 21 | B3: Fut 22 | C3: DER | D3: Age Inc | E3: HS | F3: Y/co | G3: Youth | H3: Draw | I3: Rider Name | J3: Horse Name | K3: Pen | L3: Time | M3: Placing | N3: Money Earned | P3: D Placing | R3: Split
B4: X | D4: A | H4: 6 | I4: Jamie Wilson | J4: Mi Tres Leches | L4: 16.308 | P4: 1D | Q4: 15.675
B5: X | H5: 22 | I5: Aimee Kay | J5: JA Firewater Rose | L5: 16.606 | P5: 2D | Q5: =SUM(Q4+0.5) -> 16.175 | R5: 0.5
B6: X | H6: 135 | I6: Brian Ramirez | J6: RT Im Cash N Out | L6: 16.657 | P6: 3D | Q6: =SUM(Q4+1) -> 16.675 | R6: 0.5
B7: X | D7: A | H7: 43 | I7: Kaylyn Smith | J7: Knailed It | L7: 16.73 | P7: 4D | Q7: =SUM(Q4+1.5) -> 17.175 | R7: 0.5
B8: X | H8: 52 | I8: Haley Huls | J8: Hez Ona High Streak | L8: 16.888 | P8: 5D | Q8: =SUM(Q4+2) -> 17.675 | R8: 0.5
B9: X | H9: 141 | I9: Janelle Paul | J9: Lady tTres Alive | L9: 16.95
B10: X | D10: S | H10: 74 | I10: Karen Hansen | J10: Kit Korn | L10: 17.047 | P10: # Entered
B11: X | H11: 138 | I11: Bailey Gifford | J11: I Don’t Kare | L11: 17.141 | P11: =COUNTA(I4:I503) -> 223
B12: X | H12: 51 | I12: Lauren Howe | J12: Slicks Slow Ride | L12: 17.305 | M12: 4D 4th | N12: 215.04
B13: X | H13: 129 | I13: Madison Parks | J13: VF Stylin Stinson | L13: 17.487 | P13: # Ran
B14: X | H14: 8 | I14: Janelle Paul | J14: Ivys French N Famous | L14: 17.769 | M14: 5D 4th | N14: 143.36 | P14: =COUNTA(L4:L503) -> 223
B15: X | H15: 72 | I15: Tiffany Earp | J15: Lions Pawing at Fame | L15: 17.784 | M15: 5D 5th | N15: 92.16
B16: X | H16: 90 | I16: Josey Groves | J16: MV Imalotaeagle | L16: 17.789 | M16: 5D 6th | N16: 51.2 | P16: # Left
B17: X | H17: 100 | I17: Haley Huls | J17: Storming Illuminator | L17: 19.349 | P17: =$P$11-$P$14 -> 0
B18: X | H18: 34 | I18: Cheyenne Baldwin | J18: Famous Fonzarelli | L18: 22.753
B19: X | D19: A | H19: 49 | I19: Jamie Wilson | J19: U Can Betona Cowgirl | L19: nt
B20: X | H20: 35 | I20: Tiffany Earp | J20: Shez Chasin Vegas | L20: nt31.917
H21: 30 | I21: Elizabeth Sbrusch | J21: Hot French Lady | L21: 15.675 | M21: 1D 1st | N21: 890.88
H22: 94 | I22: Gabbie Grothe | J22: Sold Out | L22: 15.686 | M22: 1D 2nd | N22: 737.28
D23: A | E23: X | H23: 331 | I23: Mindy Holloway | J23: Heavens Got Credit | L23: 15.714 | M23: 1D 3rd | N23: 583.68
H24: 344 | I24: Kelly Bruner | J24: PLL Shadrach | L24: 15.729 | M24: 1D 4th | N24: 430.08
D25: A | H25: 71 | I25: Illyssa Riley | J25: Mistys Money Blurr | L25: 15.791 | M25: 1D 5th | N25: 276.48
C26: X | D26: A | H26: 123 | I26: Kimmi Byler | J26: Prison Break Pilsner | L26: 15.842 | M26: 1D 6th | N26: 153.6
D27: A | E27: X | H27: 335 | I27: Denny Ralls | J27: SV Southern Comfort | L27: 15.873
C28: X | H28: 339 | I28: Elizabeth Sbrusch | J28: SJR Diamonds Cash | L28: 15.878
D29: A | H29: 45 | I29: Tillar King | J29: Casino Perks | L29: 15.892
H30: 150 | I30: Jamie Steiner | J30: Cupcake | L30: 15.904
C31: X | D31: A | E31: X | H31: 334 | I31: Stephanie Fryar | J31: Some Streakin French | L31: 15.905
C32: X | D32: A | H32: 158 | I32: Jayci Byler | J32: All About X's N O's | L32: 15.931
D33: S | H33: 338 | I33: Jenny Zant | J33: Raise Me Ta Fame | L33: 15.937
F34: X | G34: X | H34: 213 | I34: Jada Trosper | J34: Sun N Sevens | L34: 15.947
C35: X | D35: A | H35: 88 | I35: Tillar King | J35: MV Gonna Be Famous | L35: 15.949
H36: 10 | I36: Stephanie Fryar | J36: Guys Perky For Fame | L36: 15.955
C37: X | D37: A | H37: 15 | I37: Jimmie Smith | J37: Guys Ima Bunny Cat | L37: 15.958
H38: 97 | I38: Sally Conway | J38: Haydaysdashinfashion | L38: 15.999
D39: A | H39: 332 | I39: Merritt Potter | J39: Si Can Too | L39: 16.006
H40: 144 | I40: Mary Shae Thomas | J40: Streakin French MD | L40: 16.021
D41: A | H41: 115 | I41: Jayci Byler | J41: My Fame Us Lady | L41: 16.05
D42: A | E42: X | H42: 171 | I42: Aubrey Sprouse | J42: VF Hail Bound | L42: 16.056
H43: 133 | I43: Emma Abbott | J43: Nitro | L43: 16.082
H44: 37 | I44: Kathy Muehlen | J44: Payme First | L44: 16.1
H45: 328 | I45: Lindsey Stevens | J45: Miss America Fame | L45: 16.107
H46: 98 | I46: Kayli Morris | J46: Fortune In Fuel | L46: 16.108
H47: 65 | I47: Mandy Smith | J47: Madaconfederatetwist | L47: 16.117
H48: 131 | I48: Autumn Zilar | J48: Dox Dat Man | L48: 16.119
H49: 27 | I49: McKenna Schroeder | J49: Dirty Dan Stinson | L49: 16.122
D50: A | H50: 96 | I50: Brian Ramirez | J50: Holly | L50: 16.126
H51: 113 | I51: Rylan Heller | J51: Miss JB 1315 | L51: 16.131
H52: 206 | I52: Cindy Stone | J52: Daisy | L52: 16.134
H53: 329 | I53: Kendall Kennedy | J53: Oh No Frosty | L53: 16.142
C54: X | D54: A | E54: X | H54: 324 | I54: Tillar King | J54: Dashing Canelo | L54: 16.16
D55: S | H55: 67 | I55: Lisa Wernli | J55: Babe On The Run | L55: 16.162
D56: S | H56: 127 | I56: Tammy Rokus | J56: Mitey Confederate | L56: 16.168
D57: S | H57: 93 | I57: Amy Swan | J57: Boons Prescription | L57: 16.178 | M57: 2D 1st | N57: 742.4
H58: 130 | I58: Kristen Darrell | J58: Flirting Time | L58: 16.187 | M58: 2D 2nd | N58: 614.4
H59: 60 | I59: Andrea Sewell | J59: Abbysolutly Blitzed | L59: 16.207 | M59: 2D 3rd | N59: 486.4
C60: X | D60: A | H60: 42 | I60: Mindy Holloway | J60: Smugglin Doubles | L60: 16.211 | M60: 2D 4th/5th | N60: 294
H61: 7 | I61: Wendy Suhn | J61: Jess Be Gone | L61: 16.211 | M61: 2D 4th/5th | N61: 294
H62: 166 | I62: Emma Abbott | J62: Jello | L62: 16.222 | M62: 2D 6th | N62: 128
H63: 81 | I63: Dawn Fryar | J63: Special Bid Of Frost | L63: 16.227
D64: A | H64: 323 | I64: Jimmie Smith | J64: Manny Dot Com | L64: 16.243
H65: 77 | I65: JJ Baldwin | J65: JJJ Mr Shady Gray | L65: 16.264
F66: X | G66: X | H66: 170 | I66: Jada Trosper | J66: KN Famous Ever After | L66: 16.273
H67: 61 | I67: Kyra Boling | J67: Shesa Heaven Sent | L67: 16.287
H68: 64 | I68: Tori Volk | J68: CN Holy Cow | L68: 16.288
C69: X | D69: A | H69: 146 | I69: Kimmi Byler | J69: Adios Muchachos | L69: 16.299
H70: 58 | I70: Jancie Shelburne | J70: Ima Chrome Cowboy | L70: 16.303
H71: 149 | I71: Cassie Meyer | J71: Quick Okey Effort | L71: 16.31
C72: X | D72: A | H72: 1 | I72: Tillar King | J72: JL Lava Roc | L72: 16.312
D73: A | H73: 40 | I73: Merritt Potter | J73: Perks Alive N 75 | L73: 16.313
H74: 4 | I74: Kacey Faust | J74: VVR Corona Dash | L74: 16.317
H75: 330 | I75: Lauren Merica | J75: GoGo Romeo | L75: 16.32
H76: 73 | I76: Sara Redden | J76: Ocho | L76: 16.328
H77: 109 | I77: Emma Abbott | J77: Betty | L77: 16.335
H78: 3 | I78: Jo Fisher | L78: 16.348
H79: 163 | I79: Carley Cox | J79: Throwmamafromdatrain | L79: 16.353
D80: S | H80: 168 | I80: Lynn Saunders | J80: Chumley | L80: 16.358
H81: 343 | I81: Mandi Cleveland | J81: Little Bit Of Load | L81: 16.364
D82: S | H82: 29 | I82: Lisa Wernli | J82: Flashs Fine Effort | L82: 16.367
H83: 83 | I83: Stephanie Fryar | J83: Bayou A Winner | L83: 16.372
H84: 9 | I84: Josey Groves | J84: MV Kool Diva | L84: 16.379
H85: 78 | I85: Jeane Gibbs | J85: SS Tellerimfamous | L85: 16.39
H86: 145 | I86: Kaitlin Schuck | J86: Datsa Lil Shaker | L86: 16.392
H87: 322 | I87: JJ Baldwin | J87: JJJ Paddy | K87: 16.397 | L87: 16.397
H88: 38 | I88: Karlee Kalberer | J88: PG Famous Woody | L88: 16.426
H89: 128 | I89: Justine Botner | J89: Hel On Socks | L89: 16.427
H90: 101 | I90: Abby Henson | J90: Alive N Busy | L90: 16.435
H91: 173 | I91: Maggie Pytlik | J91: Karma | L91: 16.439
H92: 18 | I92: Haley Huls | J92: Hez High On Firewater | L92: 16.47
H93: 183 | I93: Abby Henson | J93: Zan Par Roxie | L93: 16.471
H94: 57 | I94: Jimmie Smith | J94: One Slick Scat Cat | L94: 16.529
H95: 160 | I95: Leslie Worthey | J95: JN MY Heaven | L95: 16.539
H96: 105 | I96: Sam Lindenfield | J96: Aboy Named Souix | L96: 16.551
H97: 14 | I97: Kelli Acreman | J97: Slick N Easy Design | L97: 16.596
H98: 175 | I98: Kara Kreder | J98: VF Kiss The Prince | L98: 16.624
H99: 47 | I99: Josey Groves | J99: MV Hot Campbell Soup | L99: 16.643
H100: 209 | I100: Maggie Pytlik | J100: Rhett | L100: 16.671
H101: 19 | I101: Shannon Black | J101: MR Rambo Remedy | L101: 16.684 | M101: 3D 1st | N101: 593.92
H102: 342 | I102: Carlie Conaway | J102: Sparkling Kitty Cat | L102: 16.685 | M102: 3D 2nd | N102: 491.52
H103: 89 | I103: Jana Kurosky | J103: Winnie Reds Kai | L103: 16.722 | M103: 3D 3rd | N103: 389
H104: 16 | I104: Andrea Sewell | J104: Clyde | L104: 16.723 | M104: 3D 4th/5th | N104: 236
H105: 106 | I105: Kaitlin Schuck | J105: Dejon Fame | L105: 16.723 | M105: 3D 4th/5th | N105: 236
F106: X | G106: X | H106: 79 | I106: Taylor Hice | J106: Spiked Smoothie | L106: 16.726 | M106: 3D 6th | N106: 102.4
D107: S | H107: 181 | I107: Kathy J Warren | J107: Promise Me Sunshine | L107: 16.732
H108: 159 | I108: Kendra Feaser | J108: RC | L108: 16.736
H109: 178 | I109: Corbin Pinyan | J109: Peptos Hollywood | L109: 16.77
F110: X | G110: X | H110: 31 | I110: Cienna Jacobsen | J110: Straight Up Smooth | L110: 16.784
D111: S | H111: 25 | I111: Jenna Beth Blair | J111: Money King Too | L111: 16.789
H112: 321 | I112: Casey Hammons | J112: BH Trip Ta Fame | L112: 16.797
D113: S | H113: 118 | I113: Jill Petty | J113: Fast Dashin Chick | L113: 16.807
H114: 24 | I114: Rebba Chandler | J114: Twosteppin Firewater | L114: 16.81
H115: 142 | I115: Sam Lindenfield | J115: BA First Down Legend | L115: 16.81
H116: 147 | I116: Kylee Butts | J116: Remin Party Girl | L116: 16.825
H117: 124 | I117: Stephanie Fryar | J117: Jimmy | L117: 16.831
H118: 214 | I118: Corbin Pinyan | J118: Diamond Bar Flit | L118: 16.835
H119: 134 | I119: Tracy Lambert | J119: Badger | L119: 16.856
H120: 345 | I120: Jamie Cramblit | J120: Pipers Magic | K120: 16.86 | L120: 16.86
H121: 84 | I121: Holly Pritchard | J121: Bogies French Moon | L121: 16.864
H122: 70 | I122: Rylan Heller | J122: Magnolia Moonshine | L122: 16.918
D123: S | H123: 110 | I123: Karen Coskrey | J123: Perks Gotta Gun | L123: 16.921
H124: 208 | I124: Valerie Ford | L124: 16.923
F125: X | G125: X | H125: 153 | I125: Loralai Lee | J125: Sunshine | L125: 16.927
H126: 164 | I126: Nicki Zimmerman | J126: Leavin Famous | L126: 16.931
H127: 85 | I127: Gena Franklin | L127: 16.97
H128: 20 | I128: Kyra Boling | J128: Cheri Catt | L128: 16.972
H129: 340 | I129: Cindy Masters | J129: Frenchmans Boone Dox | L129: 16.977
H130: 212 | I130: Nicki Zimmerman | J130: Talent and Charm | L130: 16.979
H131: 75 | I131: Alyssa Urbanek | J131: JR LittleBit A Wink | L131: 17.022
H132: 125 | I132: Riley Fountain | J132: Dixee Land Deelight | L132: 17.026
H133: 41 | I133: Stephanie Fryar | J133: LitemUp Im On Fire | L133: 17.027
H134: 21 | I134: JO FIsher | L134: 17.04
H135: 55 | I135: Jenna Napier | J135: Cash N The Bar | L135: 17.054
D136: S | H136: 33 | I136: Simone Elmore | J136: Mitey Moon Dash | L136: 17.089
H137: 139 | I137: Carlie Conaway | J137: Nobodys Fired | L137: 17.09
H138: 119 | I138: Blake Myers | J138: LuvOnDaRocks | L138: 17.117
H139: 327 | I139: Allie Zant | J139: Return Of A Hero | L139: 17.139
H140: 108 | I140: Mandy Smith | J140: Split Moon Marty | L140: 17.162
H141: 114 | I141: Heather Glover | J141: Peps Diamond Hickory | L141: 17.19 | M141: 4D 1st | N141: 445.44
D142: S | H142: 53 | I142: Karen Coskrey | J142: TS Dream Drifter | L142: 17.198 | M142: 4D 2nd | N142: 368.64
A143: X | D143: A | H143: 155 | I143: Kappie Etherton | J143: Lane | L143: 17.283 | M143: 4D 3rd | N143: 291.84
D144: S | H144: 87 | I144: Tracie Schoenthal | J144: Smashed For Cash | L144: 17.314 | M144: 4D 5th | N144: 138.24
H145: 140 | I145: Abby Henson | J145: Kids MoneyHoney | L145: 17.327 | M145: 4D 6th | N145: 76.8
H146: 152 | I146: Makyla Long | J146: Sparkles N Stilletos | L146: 17.365
H147: 148 | I147: Stephanie Fryar | J147: Girlz N Pearls | L147: 17.373
H148: 28 | I148: Lacy Kimball | J148: Robins Tuff N Easy | L148: 17.394
H149: 167 | I149: Kay Wyatt | J149: Trump | L149: 17.435
H150: 86 | I150: Hollie Sirman | J150: Quick Boogie | L150: 17.509
H151: 143 | I151: Kelsey Ornelas | J151: Cajun | L151: 17.62
H152: 177 | I152: Jaidyn Ornelas | J152: Gambler | L152: 17.624
H153: 341 | I153: Perry McMillan | J153: Mac | L153: 17.642
H154: 240 | I154: Jens Rudibaugh | J154: Smoking Locomotion | L154: 17.678 | M154: 5D 1st | N154: 296.96
A155: X | H155: 26 | I155: Alexi Schaapveld | J155: Spendy By Design | L155: 17.7 | M155: 5D 2nd | N155: 245.76
H156: 91 | I156: Chelan Pimental | J156: Guys Minnie Jet | L156: 17.738 | M156: 5D 3rd | N156: 194.56
D157: S | H157: 23 | I157: Susie Luschar | J157: Leos Smart Star | L157: 17.794
H158: 184 | I158: Kylee Butts | J158: Jackie | L158: 17.828
H159: 32 | I159: Mandi Cleveland | J159: Rare Corona Gone | L159: 17.835
H160: 157 | I160: Rebeka Marko | J160: Gods Awesome Mercy | L160: 17.838
H161: 11 | I161: Traci Preissl | J161: Go Breaking Bad | L161: 17.957
F162: X | G162: X | H162: 12 | I162: Madelyn Taylor | J162: Specs Boston Velvet | L162: 18.062
H163: 122 | I163: Missy Piper | J163: Rugged French Guy | L163: 18.066
H164: 39 | I164: Georgia Morris | J164: Chasin A Paycheck | L164: 18.074
H165: 44 | I165: Kathy Vasquez | J165: On A Hitting Streak | L165: 18.143
D166: S | H166: 63 | I166: Jenna Beth Blair | J166: Willasfirefromheaven | L166: 18.199
H167: 185 | I167: Tori Roberto | J167: Richard | L167: 18.266
A168: X | H168: 174 | I168: Dakota Bingham | J168: Ima Famous Spider | L168: 18.415
H169: 197 | I169: Kara Kreder | J169: Rebel Packin Fame | L169: 18.547
H170: 50 | I170: Janelle Paul | J170: Streak Ta Fame N Royalty | L170: 18.584
H171: 215 | I171: Bridgit Rodgers | J171: Cardi B | L171: 18.859
H172: 104 | I172: Katie Mearns | J172: Gray Otoe Star | L172: 19.076
H173: 132 | I173: Valerie Ford | J173: Soc | L173: 19.316
C174: X | D174: A | E174: X | H174: 336 | I174: Kylee Scribner | J174: Firewater Cartel | L174: 915.63
E175: X | H175: 337 | I175: Lisa Thornton | J175: Straight Toasted | L175: 915.693
H176: 217 | I176: Charlesee Gallaway | J176: CD Raisin Fame | L176: 915.866
H177: 211 | I177: Tori Roberto | J177: Jody | L177: 915.896
D178: A | H178: 99 | I178: Aubrey Sprouse | J178: Susue Strut | L178: 916.094
H179: 92 | I179: Janelle Paul | J179: Docs Ace Ta Fame | L179: 916.11
H180: 116 | I180: Alyssa Urbanek | J180: Fueled With Dinero | L180: 916.171
C181: X | H181: 169 | I181: Alleigh Harper | J181: Rockette Aflame | L181: 916.217
D182: S | H182: 320 | I182: Martha Wright | J182: JL Fourtafame | L182: 916.229
H183: 59 | I183: Wendy Suhn | J183: HLH Streakin A Fling | L183: 916.26
H184: 62 | I184: Savannah Hays | J184: JE Aint Smashed Yet | L184: 916.305
H185: 325 | I185: Savannah Hays | J185: Frenchmans Pick | L185: 916.331
H186: 102 | I186: Mary Shae Thomas | J186: Streaks French Flit | L186: 916.366
H187: 54 | I187: Kassie Russell | J187: Givemesomesugarbaby | L187: 916.378
E188: X | H188: 82 | I188: Lauren Howe | J188: A Hero Spotted | L188: 916.439
H189: 162 | I189: Riley Fountain | J189: Royal Dame Ta Fame | L189: 916.461
D190: A | H190: 136 | I190: Jayci Byler | J190: Heats Streakin | L190: 916.465
F191: X | G191: X | H191: 172 | I191: Tana Trosper | J191: Some Beaches Box | L191: 916.471
H192: 117 | I192: Kendra Feaser | L192: 916.498
H193: 154 | I193: Bryanne Cude | J193: Snoopy Sooner Cash | L193: 916.5
D194: S | H194: 333 | I194: Karen Hansen | J194: Be Tuff Kat | L194: 916.516
H195: 68 | I195: Karen Shelley | J195: Starbert Roy Leo | L195: 916.543
D196: A | H196: 326 | I196: Megan Epperson | J196: Kama Woodbridge | L196: 916.684
H197: 151 | I197: Kara Kreder | J197: Civil War Hero | L197: 916.794
D198: S | H198: 126 | I198: Lynn Saunders | J198: Popcorn | L198: 916.895
H199: 176 | I199: Deborah MacLeod | J199: A Woodsy Cat | L199: 916.913
D200: A | H200: 103 | I200: Lori Marsh | J200: Frenchmans Lucy Lou | L200: 916.947
H201: 13 | I201: Marka Vick | J201: Shake Em Fantabulous | L201: 917.034
... 302 more rows

Sheet Senior
C1: Senior
A2: Futurity | B2: Der | C2: Senior | D2: BBR | E2: Draw | F2: Rider Name | G2: Horse Name | H2: Time | I2: Placing | J2: Money Earned
E3: 1 | F3: Jenny Zant | G3: Raise Me Ta Fame | H3: 15.937 | I3: 1D 1st | J3: 84
E4: 2 | F4: Lisa Wernli | G4: Babe On The Run | H4: 16.162 | I4: 1D 2nd | J4: 56
E5: 3 | F5: Tammy Rokus | G5: Mitey Confederate | H5: 16.168
E6: 4 | F6: Amy Swan | G6: Boons Prescription | H6: 16.178
E7: 5 | F7: Lynn Saunders | G7: Chumley | H7: 16.358
E8: 6 | F8: Lisa Wernli | G8: Flashs Fine Effort | H8: 16.367
E9: 7 | F9: Kathy J Warren | G9: Promise Me Sunshine | H9: 16.732 | I9: 2D 1st | J9: 72
E10: 8 | F10: Jenna Beth Blair | G10: Money King Too | H10: 16.789 | I10: 2D 2nd | J10: 48
E11: 9 | F11: Jill Petty | G11: Fast Dashin Chick | H11: 16.807
E12: 10 | F12: Karen Coskrey | G12: Perks Gotta Gun | H12: 16.921
E13: 11 | F13: Karen Hansen | G13: Kit Korn | H13: 17.047 | I13: 3D 1st | J13: 48
E14: 12 | F14: Simone Elmore | G14: Mitey Moon Dash | H14: 17.089 | I14: 3D 2nd | J14: 32
E15: 13 | F15: Karen Coskrey | G15: TS Dream Drifter | H15: 17.198
E16: 14 | F16: Tracie Schoenthal | G16: Smashed For Cash | H16: 17.314
E17: 15 | F17: Susie Luschar | G17: Leos Smart Star | H17: 17.794 | I17: 4D 1st | J17: 36
E18: 16 | F18: Jenna Beth Blair | G18: Willasfirefromheaven | H18: 18.199 | I18: 4D 2nd | J18: 25
E19: 17 | F19: Martha Wright | G19: JL Fourtafame | H19: 916.229
E20: 18 | F20: Karen Hansen | G20: Be Tuff Kat | H20: 916.516
E21: 19 | F21: Lynn Saunders | G21: Popcorn | H21: 916.895
E22: 20 | F22: Martha Smith | G22: Firewatermakemehappy | H22: nt
E23: 21
E24: 22
E25: 23
E26: 25
E27: 26
E28: 27
E29: 28
E30: 29
E31: 30
E32: 31
E33: 32
E34: 24
E35: 33
E36: 34
E37: 35
E38: 36
E39: 37
E40: 38
E41: 39
E42: 40
E43: 41
E44: 42
E45: 43
E46: 44
E47: 45
E48: 46
E49: 47
E50: 48
E51: 49
E52: 50
E53: 51
E54: 52
E55: 53
E56: 54
E57: 55
E58: 56
E59: 57
E60: 58
E61: 59
E62: 60
E63: 61
E64: 62
E65: 63
E66: 64
E67: 65
E68: 66
E69: 67
E70: 68
E71: 69
E72: 70
E73: 71
E74: 72
E75: 73
E76: 74
E77: 75
E78: 76
E79: 77
E80: 78
E81: 79
E82: 80
E83: 81
E84: 82
E85: 83
E86: 84
E87: 85
E88: 86
E89: 87
E90: 88
E91: 89
E92: 90
E93: 91
E94: 92
E95: 93
E96: 94
E97: 95
E98: 96
E99: 97
E100: 98
E101: 99
E102: 100
E103: 101
E104: 102
E105: 103
E106: 104
E107: 105
E108: 106
E109: 107
E110: 108
E111: 109
E112: 110
E113: 111
E114: 112
E115: 113
E116: 114
E117: 115
E118: 116
E119: 117
E120: 118
E121: 119
E122: 120
E123: 121
E124: 122
E125: 123
E126: 124
E127: 125
E128: 126
E129: 127
E130: 128
E131: 129
E132: 130
E133: 131
E134: 132
E135: 133
E136: 134
E137: 135
E138: 136
E139: 137
E140: 138
E141: 139
E142: 140
E143: 141
E144: 142
E145: 143
E146: 144
E147: 145
E148: 146
E149: 147
E150: 148
E151: 149
E152: 150
E153: 151
E154: 152
E155: 153
E156: 154
E157: 155
E158: 156
E159: 157
E160: 158
E161: 159
E162: 160
E163: 161
E164: 162
E165: 163
E166: 164
E167: 165
E168: 166
E169: 167
E170: 168
E171: 169
E172: 170
E173: 171
E174: 172
E175: 173
E176: 174
E177: 175
E178: 176
E179: 177
E180: 178
E181: 179
E182: 180
E183: 181
E184: 182
E185: 183
E186: 184
E187: 185
E188: 186
E189: 187
E190: 188
E191: 189
E192: 190
E193: 191
E194: 192
E195: 193
E196: 194
E197: 195
E198: 196
E199: 197
E200: 198
... 102 more rows

Sheet Adult
C1: Adult
A2: Futurity | B2: Der | C2: Adult | D2: BBR | E2: Draw | F2: Rider Name | G2: Horse Name | H2: Time | I2: Placing | J2: Money Earned
E3: 1 | F3: Mindy Holloway | G3: Heavens Got Credit | H3: 15.714 | I3: 1D 1st | J3: 122
E4: 2 | F4: Illyssa Riley | G4: Mistys Money Blurr | H4: 15.791 | I4: 1D 2nd | J4: 81
E5: 3 | F5: Kimmi Byler | G5: Prison Break Pilsner | H5: 15.842
E6: 4 | F6: Denny Ralls | G6: SV Southern Comfort | H6: 15.873
E7: 5 | F7: Tillar King | G7: Casino Perks | H7: 15.892
E8: 6 | F8: Stephanie Fryar | G8: Some Streakin French | H8: 15.905
E9: 7 | F9: Jayci Byler | G9: All About X's N O's | H9: 15.931
E10: 8 | F10: Tillar King | G10: MV Gonna Be Famous | H10: 15.949
E11: 9 | F11: Jimmie Smith | G11: Guys Ima Bunny Cat | H11: 15.958
E12: 10 | F12: Merritt Potter | G12: Si Can Too | H12: 16.006
E13: 11 | F13: Jayci Byler | G13: My Fame Us Lady | H13: 16.05
E14: 22 | F14: Aubrey Sprouse | G14: VF Hail Bound | H14: 16.056
E15: 12 | F15: Brian Ramirez | G15: Holly | H15: 16.126
E16: 13 | F16: Tillar King | G16: Dashing Canelo | H16: 16.16
E17: 14 | F17: Mindy Holloway | G17: Smugglin Doubles | H17: 16.211
E18: 15 | F18: Jimmie Smith | G18: Manny Dot Com | H18: 16.243 | I18: 2D 1st | J18: 104
E19: 16 | F19: Kimmi Byler | G19: Adios Muchachos | H19: 16.299 | I19: 2D 2nd | J19: 70
E20: 17 | F20: Jamie Wilson | G20: Mi Tres Leches | H20: 16.308
E21: 18 | F21: Tillar King | G21: JL Lava Roc | H21: 16.312
E22: 19 | F22: Merritt Potter | G22: Perks Alive N 75 | H22: 16.313
E23: 20 | F23: Kaylyn Smith | G23: Knailed It | H23: 16.73 | I23: 3D 1st | J23: 116
E24: 21 | F24: Kappie Etherton | G24: Lane | H24: 17.283 | I24: 4D 1st | J24: 87
E25: 23 | F25: Kylee Scribner | G25: Firewater Cartel | H25: 915.63
E26: 24 | F26: Aubrey Sprouse | G26: Susue Strut | H26: 916.094
E27: 25 | F27: Jayci Byler | G27: Heats Streakin | H27: 916.465
E28: 26 | F28: Megan Epperson | G28: Kama Woodbridge | H28: 916.684
E29: 27 | F29: Lori Marsh | G29: Frenchmans Lucy Lou | H29: 916.947
E30: 28 | F30: Kappie Etherton | G30: Reid | H30: 932.891
E31: 29 | F31: Jamie Wilson | G31: U Can Betona Cowgirl | H31: nt
E32: 30
E33: 31
E34: 32
E35: 33
E36: 34
E37: 35
E38: 36
E39: 37
E40: 38
E41: 39
E42: 40
E43: 41
E44: 42
E45: 43
E46: 44
E47: 45
E48: 46
E49: 47
E50: 48
E51: 49
E52: 50
E53: 51
E54: 52
E55: 53
E56: 54
E57: 55
E58: 56
E59: 57
E60: 58
E61: 59
E62: 60
E63: 61
E64: 62
E65: 63
E66: 64
E67: 65
E68: 66
E69: 67
E70: 68
E71: 69
E72: 70
E73: 71
E74: 72
E75: 73
E76: 74
E77: 75
E78: 76
E79: 77
E80: 78
E81: 79
E82: 80
E83: 81
E84: 82
E85: 83
E86: 84
E87: 85
E88: 86
E89: 87
E90: 88
E91: 89
E92: 90
E93: 91
E94: 92
E95: 93
E96: 94
E97: 95
E98: 96
E99: 97
E100: 98
E101: 99
E102: 100
E103: 101
E104: 102
E105: 103
E106: 104
E107: 105
E108: 106
E109: 107
E110: 108
E111: 109
E112: 110
E113: 111
E114: 112
E115: 113
E116: 114
E117: 115
E118: 116
E119: 117
E120: 118
E121: 119
E122: 120
E123: 121
E124: 122
E125: 123
E126: 124
E127: 125
E128: 126
E129: 127
E130: 128
E131: 129
E132: 130
E133: 131
E134: 132
E135: 133
E136: 134
E137: 135
E138: 136
E139: 137
E140: 138
E141: 139
E142: 140
E143: 141
E144: 142
E145: 143
E146: 144
E147: 145
E148: 146
E149: 147
E150: 148
E151: 149
E152: 150
E153: 151
E154: 152
E155: 153
E156: 154
E157: 155
E158: 156
E159: 157
E160: 158
E161: 159
E162: 160
E163: 161
E164: 162
E165: 163
E166: 164
E167: 165
E168: 166
E169: 167
E170: 168
E171: 169
E172: 170
E173: 171
E174: 172
E175: 173
E176: 174
E177: 175
E178: 176
E179: 177
E180: 178
E181: 179
E182: 180
E183: 181
E184: 182
E185: 183
E186: 184
E187: 185
E188: 186
E189: 187
E190: 188
E191: 189
E192: 190
E193: 191
E194: 192
E195: 193
E196: 194
E197: 195
E198: 196
E199: 197
E200: 198
... 102 more rows

Sheet Youth
C1: Youth
A2: Futurity | B2: Der | C2: Youth | D2: BBR | E2: Draw | F2: Rider Name | G2: Horse Name | H2: Time | I2: Placing | J2: Money Earned
E3: 1 | F3: Jada Trosper | G3: Sun N Sevens | H3: 15.947 | I3: 1D 1st | J3: 93
E4: 2 | F4: Jada Trosper | G4: KN Famous Ever After | H4: 16.273
E5: 3 | F5: Taylor Hice | G5: Spiked Smoothie | H5: 16.726 | I5: 2D 1st | J5: 82
E6: 4 | F6: Cienna Jacobsen | G6: Straight Up Smooth | H6: 16.784
E7: 5 | F7: Loralai Lee | G7: Sunshine | H7: 16.927
E8: 6 | F8: Madelyn Taylor | G8: Specs Boston Velvet | H8: 18.062 | I8: 4D 1st | J8: 49
E9: 7 | F9: Tana Trosper | G9: Some Beaches Box | H9: 916.471
E10: 8 | F10: Camryn CeCe Carter | G10: MP Strawberry Qwick | H10: 920.134
E11: 9
E12: 10
E13: 11
E14: 12
E15: 13
E16: 14
E17: 15
E18: 16
E19: 17
E20: 18
E21: 19
E22: 20
E23: 21
E24: 22
E25: 23
E26: 24
E27: 25
E28: 26
E29: 27
E30: 28
E31: 29
E32: 30
E33: 31
E34: 32
E35: 33
E36: 34
E37: 35
E38: 36
E39: 37
E40: 38
E41: 39
E42: 40
E43: 41
E44: 42
E45: 43
E46: 44
E47: 45
E48: 46
E49: 47
E50: 48
E51: 49
E52: 50
E53: 51
E54: 52
E55: 53
E56: 54
E57: 55
E58: 56
E59: 57
E60: 58
E61: 59
E62: 60
E63: 61
E64: 62
E65: 63
E66: 64
E67: 65
E68: 66
E69: 67
E70: 68
E71: 69
E72: 70
E73: 71
E74: 72
E75: 73
E76: 74
E77: 75
E78: 76
E79: 77
E80: 78
E81: 79
E82: 80
E83: 81
E84: 82
E85: 83
E86: 84
E87: 85
E88: 86
E89: 87
E90: 88
E91: 89
E92: 90
E93: 91
E94: 92
E95: 93
E96: 94
E97: 95
E98: 96
E99: 97
E100: 98
E101: 99
E102: 100
E103: 101
E104: 102
E105: 103
E106: 104
E107: 105
E108: 106
E109: 107
E110: 108
E111: 109
E112: 110
E113: 111
E114: 112
E115: 113
E116: 114
E117: 115
E118: 116
E119: 117
E120: 118
E121: 119
E122: 120
E123: 121
E124: 122
E125: 123
E126: 124
E127: 125
E128: 126
E129: 127
E130: 128
E131: 129
E132: 130
E133: 131
E134: 132
E135: 133
E136: 134
E137: 135
E138: 136
E139: 137
E140: 138
E141: 139
E142: 140
E143: 141
E144: 142
E145: 143
E146: 144
E147: 145
E148: 146
E149: 147
E150: 148
E151: 149
E152: 150
E153: 151
E154: 152
E155: 153
E156: 154
E157: 155
E158: 156
E159: 157
E160: 158
E161: 159
E162: 160
E163: 161
E164: 162
E165: 163
E166: 164
E167: 165
E168: 166
E169: 167
E170: 168
E171: 169
E172: 170
E173: 171
E174: 172
E175: 173
E176: 174
E177: 175
E178: 176
E179: 177
E180: 178
E181: 179
E182: 180
E183: 181
E184: 182
E185: 183
E186: 184
E187: 185
E188: 186
E189: 187
E190: 188
E191: 189
E192: 190
E193: 191
E194: 192
E195: 193
E196: 194
E197: 195
E198: 196
E199: 197
E200: 198
... 102 more rows

Sheet Derby
B1: Derby
A2: Futurity | B2: Derby | C2: Age Inct. | D2: BBR | E2: Draw | F2: Rider Name | G2: Horse Name | H2: Time | I2: Placing | J2: Money Earned
E3: 1 | F3: Kimmi Byler | G3: Prison Break Pilsner | H3: 15.842 | I3: 1st | J3: 240
E4: 2 | F4: Elizabeth Sbrusch | G4: SJR Diamonds Cash | H4: 15.878 | I4: 2nd | J4: 144
E5: 3 | F5: Stephanie Fryar | G5: Some Streakin French | H5: 15.905 | I5: 3rd | J5: 96
E6: 4 | F6: Jayci Byler | G6: All About X's N O's | H6: 15.931
E7: 5 | F7: Tillar King | G7: MV Gonna Be Famous | H7: 15.949
E8: 6 | F8: Jimmie Smith | G8: Guys Ima Bunny Cat | H8: 15.958
E9: 7 | F9: Tillar King | G9: Dashing Canelo | H9: 16.16
E10: 8 | F10: Mindy Holloway | G10: Smugglin Doubles | H10: 16.211
E11: 9 | F11: Kimmi Byler | G11: Adios Muchachos | H11: 16.299
E12: 10 | F12: Tillar King | G12: JL Lava Roc | H12: 16.312
E13: 11 | F13: Kylee Scribner | G13: Firewater Cartel | H13: 915.63
E14: 12 | F14: Alleigh Harper | G14: Rockette Aflame | H14: 916.217
E15: 13
E16: 14
E17: 15
E18: 16
E19: 17
E20: 18
E21: 19
E22: 20
E23: 23
E24: 24
E25: 25
E26: 26
E27: 27
E28: 28
E29: 29
E30: 30
E31: 31
E32: 32
E33: 33
E34: 34
E35: 35
E36: 36
E37: 37
E38: 38
E39: 39
E40: 40
E41: 41
E42: 42
E43: 43
E44: 44
E45: 45
E46: 46
E47: 47
E48: 48
E49: 49
E50: 50
E51: 51
E52: 52
E53: 53
E54: 54
E55: 55
E56: 56
E57: 57
E58: 58
E59: 59
E60: 60
E61: 61
E62: 62
E63: 63
E64: 64
E65: 65
E66: 66
E67: 67
E68: 68
E69: 69
E70: 70
E71: 71
E72: 72
E73: 73
E74: 74
E75: 75
E76: 76
E77: 77
E78: 78
E79: 79
E80: 80
E81: 81
E82: 82
E83: 83
E84: 84
E85: 85
E86: 86
E87: 87
E88: 88
E89: 89
E90: 90
E91: 91
E92: 92
E93: 93
E94: 94
E95: 95
E96: 96
E97: 97
E98: 98
E99: 99
E100: 100
E101: 101
E102: 102
E103: 103
E104: 104
E105: 105
E106: 106
E107: 107
E108: 108
E109: 109
E110: 110
E111: 111
E112: 112
E113: 113
E114: 114
E115: 115
E116: 116
E117: 117
E118: 118
E119: 119
E120: 120
E121: 121
E122: 122
E123: 123
E124: 124
E125: 125
E126: 126
E127: 127
E128: 128
E129: 129
E130: 130
E131: 131
E132: 132
E133: 133
E134: 134
E135: 135
E136: 136
E137: 137
E138: 138
E139: 139
E140: 140
E141: 141
E142: 142
E143: 143
E144: 144
E145: 145
E146: 146
E147: 147
E148: 148
E149: 149
E150: 150
E151: 151
E152: 152
E153: 153
E154: 154
E155: 155
E156: 156
E157: 157
E158: 158
E159: 159
E160: 160
E161: 161
E162: 162
E163: 163
E164: 164
E165: 165
E166: 166
E167: 167
E168: 168
E169: 169
E170: 170
E171: 171
E172: 172
E173: 173
E174: 174
E175: 175
E176: 176
E177: 177
E178: 178
E179: 179
E180: 180
E181: 181
E182: 182
E183: 183
E184: 184
E185: 185
E186: 186
E187: 187
E188: 188
E189: 189
E190: 190
E191: 191
E192: 192
E193: 193
E194: 194
E195: 195
E196: 196
E197: 197
E198: 198
E199: 199
E200: 200
... 100 more rows

Sheet High Stakes
A1: High Stakes
A2: HS | B2: Der | C2: Age Inct. | D2: BBR | E2: Draw | F2: Rider Name | G2: Horse Name | H2: Time | I2: Placing | J2: Money Earned
E3: 1 | F3: Mindy Holloway | G3: Heavens Got Credit | H3: 15.714 | I3: 1st | J3: 384
E4: 2 | F4: Denny Ralls | G4: SV Southern Comfort | H4: 15.873 | I4: 2nd | J4: 229
E5: 3 | F5: Stephanie Fryar | G5: Some Streakin French | H5: 15.905
E6: 4 | F6: Aubrey Sprouse | G6: VF Hail Bound | H6: 16.056
E7: 5 | F7: Tillar King | G7: Dashing Canelo | H7: 16.16
E8: 6 | F8: Kylee Scribner | G8: Firewater Cartel | H8: 915.63
E9: 7 | F9: Lisa Thornton | G9: Straight Toasted | H9: 915.693
E10: 8 | F10: Lauren Howe | G10: A Hero Spotted | H10: 916.439
E11: 9
E12: 10
E13: 11
E14: 12
E15: 13
E16: 14
E17: 15
E18: 16
E19: 17
E20: 18
E21: 19
E22: 20
E23: 21
E24: 22
E25: 23
E26: 24
E27: 25
E28: 26
E29: 27
E30: 28
E31: 29
E32: 30
E33: 31
E34: 32
E35: 33
E36: 34
E37: 35
E38: 36
E39: 37
E40: 38
E41: 39
E42: 40
E43: 41
E44: 42
E45: 43
E46: 44
E47: 45
E48: 46
E49: 47
E50: 48
E51: 49
E52: 50
E53: 51
E54: 52
E55: 53
E56: 54
E57: 55
E58: 56
E59: 57
E60: 58
E61: 59
E62: 60
E63: 61
E64: 62
E65: 63
E66: 64
E67: 65
E68: 66
E69: 67
E70: 68
E71: 69
E72: 70
E73: 71
E74: 72
E75: 73
E76: 74
E77: 75
E78: 76
E79: 77
E80: 78
E81: 79
E82: 80
E83: 81
E84: 82
E85: 83
E86: 84
E87: 85
E88: 86
E89: 87
E90: 88
E91: 89
E92: 90
E93: 91
E94: 92
E95: 93
E96: 94
E97: 95
E98: 96
E99: 97
E100: 98
E101: 99
E102: 100
E103: 101
E104: 102
E105: 103
E106: 104
E107: 105
E108: 106
E109: 107
E110: 108
E111: 109
E112: 110
E113: 111
E114: 112
E115: 113
E116: 114
E117: 115
E118: 116
E119: 117
E120: 118
E121: 119
E122: 120
E123: 121
E124: 122
E125: 123
E126: 124
E127: 125
E128: 126
E129: 127
E130: 128
E131: 129
E132: 130
E133: 131
E134: 132
E135: 133
E136: 134
E137: 135
E138: 136
E139: 137
E140: 138
E141: 139
E142: 140
E143: 141
E144: 142
E145: 143
E146: 144
E147: 145
E148: 146
E149: 147
E150: 148
E151: 149
E152: 150
E153: 151
E154: 152
E155: 153
E156: 154
E157: 155
E158: 156
E159: 157
E160: 158
E161: 159
E162: 160
E163: 161
E164: 162
E165: 163
E166: 164
E167: 165
E168: 166
E169: 167
E170: 168
E171: 169
E172: 170
E173: 171
E174: 172
E175: 173
E176: 174
E177: 175
E178: 176
E179: 177
E180: 178
E181: 179
E182: 180
E183: 181
E184: 182
E185: 183
E186: 184
E187: 185
E188: 186
E189: 187
E190: 188
E191: 189
E192: 190
E193: 191
E194: 192
E195: 193
E196: 194
E197: 195
E198: 196
E199: 197
E200: 198
... 102 more rows

Sheet Futurity 2021
A1: Futurity 2021
A2: Futurity | B2: Der | C2: Age Inct. | D2: BBR | E2: Draw | F2: Rider Name | G2: Horse Name | H2: Time | I2: Placing | J2: Money Earned
E3: 1 | F3: Kappie Etherton | G3: Lane | H3: 17.283 | I3: 1D 1st | J3: 112
E4: 2 | F4: Alexi Schaapveld | G4: Spendy By Design | H4: 17.7
E5: 3 | F5: Dakota Bingham | G5: Ima Famous Spider | H5: 18.415 | I5: 2D 1st | J5: 84
E6: 4 | F6: Whitney Simmons | G6: Ax Blubird Café | H6: 918.442
E7: 5
E8: 6
E9: 7
E10: 8
E11: 9
E12: 10
E13: 11
E14: 12
E15: 13
E16: 14
E17: 15
E18: 16
E19: 17
E20: 18
E21: 19
E22: 20
E23: 21
E24: 22
E25: 23
E26: 24
E27: 25
E28: 26
E29: 27
E30: 28
E31: 29
E32: 30
E33: 31
E34: 32
E35: 33
E36: 34
E37: 35
E38: 36
E39: 37
E40: 38
E41: 39
E42: 40
E43: 41
E44: 42
E45: 43
E46: 44
E47: 45
E48: 46
E49: 47
E50: 48
E51: 49
E52: 50
E53: 51
E54: 52
E55: 53
E56: 54
E57: 55
E58: 56
E59: 57
E60: 58
E61: 59
E62: 60
E63: 61
E64: 62
E65: 63
E66: 64
E67: 65
E68: 66
E69: 67
E70: 68
E71: 69
E72: 70
E73: 71
E74: 72
E75: 73
E76: 74
E77: 75
E78: 76
E79: 77
E80: 78
E81: 79
E82: 80
E83: 81
E84: 82
E85: 83
E86: 84
E87: 85
E88: 86
E89: 87
E90: 88
E91: 89
E92: 90
E93: 91
E94: 92
E95: 93
E96: 94
E97: 95
E98: 96
E99: 97
E100: 98
E101: 99
E102: 100
E103: 101
E104: 102
E105: 103
E106: 104
E107: 105
E108: 106
E109: 107
E110: 108
E111: 109
E112: 110
E113: 111
E114: 112
E115: 113
E116: 114
E117: 115
E118: 116
E119: 117
E120: 118
E121: 119
E122: 120
E123: 121
E124: 122
E125: 123
E126: 124
E127: 125
E128: 126
E129: 127
E130: 128
E131: 129
E132: 130
E133: 131
E134: 132
E135: 133
E136: 134
E137: 135
E138: 136
E139: 137
E140: 138
E141: 139
E142: 140
E143: 141
E144: 142
E145: 143
E146: 144
E147: 145
E148: 146
E149: 147
E150: 148
E151: 149
E152: 150
E153: 151
E154: 152
E155: 153
E156: 154
E157: 155
E158: 156
E159: 157
E160: 158
E161: 159
E162: 160
E163: 161
E164: 162
E165: 163
E166: 164
E167: 165
E168: 166
E169: 167
E170: 168
E171: 169
E172: 170
E173: 171
E174: 172
E175: 173
E176: 174
E177: 175
E178: 176
E179: 177
E180: 178
E181: 179
E182: 180
E183: 181
E184: 182
E185: 183
E186: 184
E187: 185
E188: 186
E189: 187
E190: 188
E191: 189
E192: 190
E193: 191
E194: 192
E195: 193
E196: 194
E197: 195
E198: 196
E199: 197
E200: 198
... 102 more rows

Sheet Futurity 2022
A1: Futurity 2022
A2: Futurity | B2: Der | C2: Age Inct. | D2: BBR | E2: Draw | F2: Rider Name | G2: Horse Name | H2: Time | I2: Placing | J2: Money Earned
E3: 1 | F3: Jamie Wilson | G3: Mi Tres Leches | H3: 16.308 | I3: 1D 1st | J3: 285.6
E4: 2 | F4: Aimee Kay | G4: JA Firewater Rose | H4: 16.606 | I4: 1D 2nd | J4: 190.4
E5: 3 | F5: Brian Ramirez | G5: RT Im Cash N Out | H5: 16.657
E6: 4 | F6: Kaylyn Smith | G6: Knailed It | H6: 16.73
E7: 5 | F7: Haley Huls | G7: Hez Ona High Streak | H7: 16.888
E8: 6 | F8: Janelle Paul | G8: Lady tTres Alive | H8: 16.95
E9: 7 | F9: Karen Hansen | G9: Kit Korn | H9: 17.047
E10: 8 | F10: Bailey Gifford | G10: I Don’t Kare | H10: 17.141 | I10: 2D 1st | J10: 122.4
E11: 9 | F11: Lauren Howe | G11: Slicks Slow Ride | H11: 17.305 | I11: 2D 2nd | J11: 50
E12: 10 | F12: Madison Parks | G12: VF Stylin Stinson | H12: 17.487
E13: 11 | F13: Janelle Paul | G13: Ivys French N Famous | H13: 17.769
E14: 12 | F14: Tiffany Earp | G14: Lions Pawing at Fame | H14: 17.784
E15: 13 | F15: Josey Groves | G15: MV Imalotaeagle | H15: 17.789
E16: 14 | F16: Haley Huls | G16: Storming Illuminator | H16: 19.349
E17: 15 | F17: Cheyenne Baldwin | G17: Famous Fonzarelli | H17: 22.753
E18: 16 | F18: Jamie Wilson | G18: U Can Betona Cowgirl | H18: nt
E19: 17 | F19: Tiffany Earp | G19: Shez Chasin Vegas | H19: nt31.917
E20: 18
E21: 19
E22: 20
E23: 21
E24: 22
E25: 23
E26: 24
E27: 25
E28: 26
E29: 27
E30: 28
E31: 29
E32: 30
E33: 31
E34: 32
E35: 33
E36: 34
E37: 35
E38: 36
E39: 37
E40: 38
E41: 39
E42: 40
E43: 41
E44: 42
E45: 43
E46: 44
E47: 45
E48: 46
E49: 47
E50: 48
E51: 49
E52: 50
E53: 51
E54: 52
E55: 53
E56: 54
E57: 55
E58: 56
E59: 57
E60: 58
E61: 59
E62: 60
E63: 61
E64: 62
E65: 63
E66: 64
E67: 65
E68: 66
E69: 67
E70: 68
E71: 69
E72: 70
E73: 71
E74: 72
E75: 73
E76: 74
E77: 75
E78: 76
E79: 77
E80: 78
E81: 79
E82: 80
E83: 81
E84: 82
E85: 83
E86: 84
E87: 85
E88: 86
E89: 87
E90: 88
E91: 89
E92: 90
E93: 91
E94: 92
E95: 93
E96: 94
E97: 95
E98: 96
E99: 97
E100: 98
E101: 99
E102: 100
E103: 101
E104: 102
E105: 103
E106: 104
E107: 105
E108: 106
E109: 107
E110: 108
E111: 109
E112: 110
E113: 111
E114: 112
E115: 113
E116: 114
E117: 115
E118: 116
E119: 117
E120: 118
E121: 119
E122: 120
E123: 121
E124: 122
E125: 123
E126: 124
E127: 125
E128: 126
E129: 127
E130: 128
E131: 129
E132: 130
E133: 131
E134: 132
E135: 133
E136: 134
E137: 135
E138: 136
E139: 137
E140: 138
E141: 139
E142: 140
E143: 141
E144: 142
E145: 143
E146: 144
E147: 145
E148: 146
E149: 147
E150: 148
E151: 149
E152: 150
E153: 151
E154: 152
E155: 153
E156: 154
E157: 155
E158: 156
E159: 157
E160: 158
E161: 159
E162: 160
E163: 161
E164: 162
E165: 163
E166: 164
E167: 165
E168: 166
E169: 167
E170: 168
E171: 169
E172: 170
E173: 171
E174: 172
E175: 173
E176: 174
E177: 175
E178: 176
E179: 177
E180: 178
E181: 179
E182: 180
E183: 181
E184: 182
E185: 183
E186: 184
E187: 185
E188: 186
E189: 187
E190: 188
E191: 189
E192: 190
E193: 191
E194: 192
E195: 193
E196: 194
E197: 195
E198: 196
E199: 197
E200: 198
... 102 more rows

Sheet 12 & Under (hidden)
A1: Futurity | B1: Der | C1: Age Inct. | D1: R/O | E1: Draw | F1: Rider Name | G1: Horse Name | H1: Time | I1: Final Time | J1: Placing | K1: Money Earned
E33: 32
E34: 33
E35: 34
E36: 35
E37: 36
E38: 37
E39: 38
E40: 39
E41: 40
E42: 41
E43: 42
E44: 43
E45: 44
E46: 45
E47: 46
E48: 47
E49: 48
E50: 49
E51: 50
E52: 51
E53: 52
E54: 53
E55: 54
E56: 55
E57: 56
E58: 57
E59: 58
E60: 59
E61: 60
E62: 61
E63: 62
E64: 63
E65: 64
E66: 65
E67: 66
E68: 67
E69: 68
E70: 69
E71: 70
E72: 71
E73: 72
E74: 73
E75: 74
E76: 75
E77: 76
E78: 77
E79: 78
E80: 79
E81: 80
E82: 81
E83: 82
E84: 83
E85: 84
E86: 85
E87: 86
E88: 87
E89: 88
E90: 89
E91: 90
E92: 91
E93: 92
E94: 93
E95: 94
E96: 95
E97: 96
E98: 97
E99: 98
E100: 99
E101: 100
E102: 101
E103: 102
E104: 103
E105: 104
E106: 105
E107: 106
E108: 107
E109: 108
E110: 109
E111: 110
E112: 111
E113: 112
E114: 113
E115: 114
E116: 115
E117: 116
E118: 117
E119: 118
E120: 119
E121: 120
E122: 121
E123: 122
E124: 123
E125: 124
E126: 125
E127: 126
E128: 127
E129: 128
E130: 129
E131: 130
E132: 131
E133: 132
E134: 133
E135: 134
E136: 135
E137: 136
E138: 137
E139: 138
E140: 139
E141: 140
E142: 141
E143: 142
E144: 143
E145: 144
E146: 145
E147: 146
E148: 147
E149: 148
E150: 149
E151: 150
E152: 151
E153: 152
E154: 153
E155: 154
E156: 155
E157: 156
E158: 157
E159: 158
E160: 159
E161: 160
E162: 161
E163: 162
E164: 163
E165: 164
E166: 165
E167: 166
E168: 167
E169: 168
E170: 169
E171: 170
E172: 171
E173: 172
E174: 173
E175: 174
E176: 175
E177: 176
E178: 177
E179: 178
E180: 179
E181: 180
E182: 181
E183: 182
E184: 183
E185: 184
E186: 185
E187: 186
E188: 187
E189: 188
E190: 189
E191: 190
E192: 191
E193: 192
E194: 193
E195: 194
E196: 195
E197: 196
E198: 197
E199: 198
E200: 199
E201: 200
E202: 201
E203: 202
E204: 203
E205: 204
E206: 205
E207: 206
E208: 207
E209: 208
E210: 209
E211: 210
E212: 211
E213: 212
E214: 213
E215: 214
E216: 215
E217: 216
E218: 217
E219: 218
E220: 219
E221: 220
E222: 221
E223: 222
E224: 223
E225: 224
E226: 225
E227: 226
E228: 227
E229: 228
E230: 229
E231: 230
... 70 more rows

Sheet Future Champs
A1: Future Champs
A2: Draw | B2: Rider Name | C2: Horse Name | D2: Time | E2: Placing | F2: Money Earned
A3: 1 | B3: Lawson Kimball | C3: Picachu
A4: 2 | B4: Reagan Marsh
A5: 3 | B5: Everly Kimball | C5: Radar
A6: 4 | B6: Breelyn Black | C6: Poptart
A7: 5 | B7: Knox Pritchard | C7: Shooter
A8: 6 | B8: Chaynee Lindenfeld | C8: Abby the Appy
A9: 7 | B9: Bryson Rawson | C9: Abby
A10: 8
A11: 9
A12: 10
A13: 11
A14: 12
A15: 13
A16: 14
A17: 15
A18: 16
A19: 17
A20: 18
A21: 19
A22: 20
A23: 21
A24: 22
A25: 23

Sheet BFA 2D Payout (hidden)
A1: BFA 2D Payout
A2: Entry Fee | B2: # Entries | C2: % Payback | D2: Added $ | E2: Total Payout | F2: Each Go
A3: 25 | B3: 19 | C3: 0.8 | D3: 200 | E3: =(A3*$C$3)*B3+D3 -> 580 | F3: 0.3
F4: =$E$3*$F$3 -> 174
A5: $5,000-7,500 Pays 5 Places 4 to 1D 1 to 2D
A6: Placings | B6: 1D | D6: 2D
A7: 1st | B7: =($F$4*$C$7) -> 57.42 | C7: 0.33 | D7: =$F$4*$E$7 -> 12.18 | E7: 0.07
A8: 2nd | B8: =$F$4*$C$8 -> 46.98 | C8: 0.27
A9: 3rd | B9: =$F$4*$C$9 -> 34.8 | C9: 0.2
A10: 4th | B10: =$F$4*$C$10 -> 22.62 | C10: 0.13
A11: Totals | B11: =SUM(B7:B10) -> 161.82 | D11: =SUM(D7:D10) -> 12.18 | E11: =(C7+C8+C9+C10+E7+E8) -> 1
A12: =B11+D11 -> 174
A13: $7,501 - 10,000 Pays 6 Places 4 to 1D, 2 to 2D
A14: Placings | B14: 1D | D14: 2D
A15: 1st | B15: =$F$4*$C$15 -> 50.46 | C15: 0.29 | D15: =$F$4*$E$15 -> 15.66 | E15: 0.09
A16: 2nd | B16: =+$F$4*$C$16 -> 41.76 | C16: 0.24 | D16: =F4*E16 -> 8.7 | E16: 0.05
A17: 3rd | B17: =$F$4*$C$17 -> 33.06 | C17: 0.19
A18: 4th | B18: =$F$4*$C$18 -> 24.36 | C18: 0.14
A19: Totals | B19: =SUM(B15:B18) -> 149.64 | D19: =D16+D15 -> 24.36 | E19: =SUM(C15+C16+C17+C18+E15+E16) -> 1
A20: =D19+B19 -> 174
A21: $10,001 - $15,000 Payes 8 Places 5 to 1D, 3 to 2D
A22: Placings | B22: 1D | D22: 2D
A23: 1st | B23: =F4*C23 -> 41.76 | C23: 0.24 | D23: =F4*E23 -> 12.18 | E23: 0.07
A24: 2nd | B24: =F4*C24 -> 34.8 | C24: 0.2 | D24: =F4*E24 -> 8.7 | E24: 0.05
A25: 3rd | B25: =F4*C25 -> 29.58 | C25: 0.17 | D25: =F4*E25 -> 6.96 | E25: 0.04
A26: 4th | B26: =F4*C26 -> 22.62 | C26: 0.13
A27: 5th | B27: =F4*C27 -> 17.4 | C27: 0.1
A28: Totals | B28: =SUM(B23:B27) -> 146.16 | D28: =SUM(D23:D27) -> 27.84 | E28: =C23+C24+C25+C26+C27+E23+E24+E25 -> 1
A29: =B28+D28 -> 174
A30: $15,001 - $25,000 Payes 11 Places 7 to 1D, 4 to 2D
A31: Placings | B31: 1D | D31: 2D
A32: 1st | B32: =$F$4*C32 -> 36.54 | C32: 0.21 | D32: =$F$4*E32 -> 8.7 | E32: 0.05
A33: 2nd | B33: =$F$4*C33 -> 31.32 | C33: 0.18 | D33: =$F$4*E33 -> 6.96 | E33: 0.04
A34: 3rd | B34: 26.1 | C34: 0.15 | D34: 5.22 | E34: 0.03
A35: 4th | B35: 19.14 | C35: 0.11 | D35: 3.48 | E35: 0.02
A36: 5th | B36: 13.92 | C36: 0.08
A37: 6th | B37: 12.18 | C37: 0.07
A38: 7th | B38: 10.44 | C38: 0.06
A39: Totals | B39: =SUM(B32:B38) -> 149.64 | D39: =SUM(D32:D38) -> 24.36 | E39: =C32+C33+C34+C35+C36+C37+C38+E32+E33+E34+E35 -> 1
A40: =SUM(B39+D39) -> 174
A41: $25,001 - $35,000 Payes 12 Places 8 to 1D, 4 to 2D
A42: Placings | B42: 1D | D42: 2D
A43: 1st | B43: =$F$4*C43 -> 33.06 | C43: 0.19 | D43: =$F$4*E43 -> 8.7 | E43: 0.05
A44: 2nd | B44: =$F$4*C44 -> 26.1 | C44: 0.15 | D44: =$F$4*E44 -> 6.96 | E44: 0.04
A45: 3rd | B45: 20.88 | C45: 0.12 | D45: 5.22 | E45: 0.03
A46: 4th | B46: 17.4 | C46: 0.1 | D46: 3.48 | E46: 0.02
A47: 5th | B47: 15.66 | C47: 0.09
A48: 6th | B48: 13.92 | C48: 0.08
A49: 7th | B49: 12.18 | C49: 0.07
A50: 8th | B50: 10.44 | C50: 0.06
A51: Totals | B51: =SUM(B43:B50) -> 149.64 | D51: =SUM(D43:D46) -> 24.36 | E51: =C43+C44+C45+C46+C47+C48+C49+C50+E43+E44+E45+E46 -> 1
A52: =D51+B51 -> 174

Sheet 2D Payout
A1: 2D Payout
A2: Entry Fee | B2: # Entries | C2: % Payback | D2: Added $ | E2: Total Payout
A3: 50 | B3: 17 | C3: 0.8 | E3: =(A3*$C$3)*B3+D3 -> 680
A5: % in each D | B5: 0.7 | C5: 0.3 | D5: Total % = | E5: =SUM(B5:C5) -> 1
B6: 1D | C6: 2D
B7: =(($A$3*$B$3*$C$3*$B$5)+($D$3*$B$5)) -> 476 | C7: =(($A$3*$B$3*$C$3*$C$5)+($D$3*$C$5)) -> 204
A8: Totals | B8: =SUM(B7) -> 476 | C8: =SUM(C7) -> 204 | D8: =SUM(B8:C8) -> 680
A10: For 1-7 riders 1 place
A11: Placings | B11: 1D | C11: 2D
A12: 1st | B12: =$B$7*$E$12 -> 476 | C12: =$C$7*$E$5 -> 204 | D12: è | E12: 1
A13: Totals | B13: =SUM(B12:B12) -> 476 | C13: =SUM(C12:C12) -> 204 | D13: =SUM(B13:C13) -> 680 | E13: =SUM(E12) -> 1
A15: For 8-11 riders 2 places
A16: Placings | B16: 1D | C16: 2D
A17: 1st | B17: =$B$7*$E$17 -> 285.6 | C17: =$C$7*$E$17 -> 122.4 | D17: è | E17: 0.6
A18: 2nd | B18: =$B$7*$E$18 -> 190.4 | C18: 50 | D18: è | E18: 0.4
A19: Totals | B19: =SUM(B17:B18) -> 476 | C19: =SUM(C17:C18) -> 172.4 | D19: =SUM(B19:C19) -> 648.4 | E19: =SUM(E17:E18) -> 1
A21: For 12-15 riders 3 places
A22: Placings | B22: 1D | C22: 2D
A23: 1st | B23: =$B$7*$E$23 -> 238 | C23: =$C$7*$E$23 -> 102 | D23: è | E23: 0.5
A24: 2nd | B24: =$B$7*$E$24 -> 142.8 | C24: =$C$7*$E$24 -> 61.2 | D24: è | E24: 0.3
A25: 3rd | B25: =$B$7*$E$25 -> 95.2 | C25: =$C$7*$E$25 -> 40.8 | D25: è | E25: 0.2
A26: Totals | B26: =SUM(B23:B25) -> 476 | C26: =SUM(C23:C25) -> 204 | D26: =SUM(B26:C26) -> 680 | E26: =SUM(E23:E25) -> 1
A28: For 16-19 riders 4 places
A29: Placings | B29: 1D | C29: 2D
A30: 1st | B30: =$B$7*$E$30 -> 190.4 | C30: =$C$7*$E$30 -> 81.6 | D30: è | E30: 0.4
A31: 2nd | B31: =$B$7*$E$31 -> 142.8 | C31: =$C$7*$E$31 -> 61.2 | D31: è | E31: 0.3
A32: 3rd | B32: =$B$7*$E$32 -> 95.2 | C32: =$C$7*$E$32 -> 40.8 | D32: è | E32: 0.2
A33: 4th | B33: =$B$7*$E$33 -> 47.6 | C33: =$C$7*$E$33 -> 20.4 | D33: è | E33: 0.1
A34: Totals | B34: =SUM(B30:B33) -> 476 | C34: =SUM(C30:C33) -> 204 | D34: =SUM(B34:C34) -> 680 | E34: =SUM(E30:E33) -> 1
A36: For 20-23 riders 5 places
A37: Placings | B37: 1D | C37: 2D
A38: 1st | B38: =$B$7*$E$38 -> 142.8 | C38: =$C$7*$E$38 -> 61.2 | D38: è | E38: 0.3
A39: 2nd | B39: =$B$7*$E$39 -> 119 | C39: =$C$7*$E$39 -> 51 | D39: è | E39: 0.25
A40: 3rd | B40: =$B$7*$E$40 -> 95.2 | C40: =$C$7*$E$40 -> 40.8 | D40: è | E40: 0.2
A41: 4th | B41: =$B$7*$E$41 -> 71.4 | C41: =$C$7*$E$41 -> 30.6 | D41: è | E41: 0.15
A42: 5th | B42: =$B$7*$E$42 -> 47.6 | C42: =$C$7*$E$42 -> 20.4 | D42: è | E42: 0.1
A43: Totals | B43: =SUM(B38:B42) -> 476 | C43: =SUM(C38:C42) -> 204 | D43: =SUM(B43:C43) -> 680 | E43: =SUM(E38:E42) -> 1
A45: For 24-27 riders 6 places
A46: Placings | B46: 1D | C46: 2D
A47: 1st | B47: =$B$7*$E$47 -> 119 | C47: =$C$7*$E$47 -> 51 | D47: è | E47: 0.25
A48: 2nd | B48: =$B$7*$E$48 -> 95.2 | C48: =$C$7*$E$48 -> 40.8 | D48: è | E48: 0.2
A49: 3rd | B49: =$B$7*$E$49 -> 85.68 | C49: =$C$7*$E$49 -> 36.72 | D49: è | E49: 0.18
A50: 4th | B50: =$B$7*$E$50 -> 71.4 | C50: =$C$7*$E$50 -> 30.6 | D50: è | E50: 0.15
A51: 5th | B51: =$B$7*$E$51 -> 57.12 | C51: =$C$7*$E$51 -> 24.48 | D51: è | E51: 0.12
A52: 6th | B52: =$B$7*$E$52 -> 47.6 | C52: =$C$7*$E$52 -> 20.4 | D52: è | E52: 0.1
A53: Totals | B53: =SUM(B47:B52) -> 476 | C53: =SUM(C47:C52) -> 204 | D53: =SUM(B53:C53) -> 680 | E53: =SUM(E47:E52) -> 1
A55: For 28-31 riders 7 places
A56: Placings | B56: 1D | C56: 2D
A57: 1st | B57: =$B$7*$E$57 -> 104.72 | C57: =$C$7*$E$57 -> 44.88 | D57: è | E57: 0.22
A58: 2nd | B58: =$B$7*$E$58 -> 85.68 | C58: =$C$7*$E$58 -> 36.72 | D58: è | E58: 0.18
A59: 3rd | B59: =$B$7*$E$59 -> 76.16 | C59: =$C$7*$E$59 -> 32.64 | D59: è | E59: 0.16
A60: 4th | B60: =$B$7*$E$60 -> 66.64 | C60: =$C$7*$E$60 -> 28.56 | D60: è | E60: 0.14
A61: 5th | B61: =$B$7*$E$61 -> 57.12 | C61: =$C$7*$E$61 -> 24.48 | D61: è | E61: 0.12
A62: 6th | B62: =$B$7*$E$62 -> 47.6 | C62: =$C$7*$E$62 -> 20.4 | D62: è | E62: 0.1
A63: 7th | B63: =$B$7*$E$63 -> 38.08 | C63: =$C$7*$E$63 -> 16.32 | D63: è | E63: 0.08
A64: Totals | B64: =SUM(B57:B63) -> 476 | C64: =SUM(C57:C63) -> 204 | D64: =SUM(B64:C64) -> 680 | E64: =SUM(E57:E63) -> 1
A66: For 32 or more riders 8 places
A67: Placings | B67: 1D | C67: 2D
A68: 1st | B68: =$B$7*$E$68 -> 109.48 | C68: =$C$7*$E$68 -> 46.92 | D68: è | E68: 0.23
A69: 2nd | B69: =$B$7*$E$69 -> 95.2 | C69: =$C$7*$E$69 -> 40.8 | D69: è | E69: 0.2
A70: 3rd | B70: =$B$7*$E$70 -> 80.92 | C70: =$C$7*$E$70 -> 34.68 | D70: è | E70: 0.17
A71: 4th | B71: =$B$7*$E$71 -> 66.64 | C71: =$C$7*$E$71 -> 28.56 | D71: è | E71: 0.14
A72: 5th | B72: =$B$7*$E$72 -> 52.36 | C72: =$C$7*$E$72 -> 22.44 | D72: è | E72: 0.11
A73: 6th | B73: =$B$7*$E$73 -> 38.08 | C73: =$C$7*$E$73 -> 16.32 | D73: è | E73: 0.08
A74: 7th | B74: =$B$7*$E$74 -> 23.8 | C74: =$C$7*$E$74 -> 10.2 | D74: è | E74: 0.05
A75: 8th | B75: =$B$7*$E$75 -> 9.52 | C75: =$C$7*$E$75 -> 4.08 | D75: è | E75: 0.02
A76: Totals | B76: =SUM(B68:B75) -> 476 | C76: =SUM(C68:C75) -> 204 | D76: =SUM(B76:C76) -> 680 | E76: =SUM(E68:E75) -> 1

Sheet 3D Payout (hidden)
A1: 3D Payout
A2: Entry Fee | B2: # Entries | C2: % Payback | D2: $ From Entry | E2: Added $ | F2: Total Payout
A3: 10 | B3: 3 | C3: 0.8 | D3: =$A$3*$C$3*$B$3 -> 24 | F3: =$D$3+$E$3 -> 24
A5: % in each D | B5: 0.5 | C5: 0.3 | D5: 0.2 | E5: Total % = | F5: =SUM(B5:D5) -> 1
B6: 1D | C6: 2D | D6: 3D
B7: =(($A$3*$B$3*$C$3*$B$5)+($E$3*$B$5)) -> 12 | C7: =(($A$3*$B$3*$C$3*$C$5)+($E$3*$C$5)) -> 7.2 | D7: =(($A$3*$B$3*$C$3*$D$5)+($E$3*$D$5)) -> 4.8
A8: Totals | B8: =SUM(B7) -> 12 | C8: =SUM(C7) -> 7.2 | D8: 4.8 | E8: =SUM(B8:D8) -> 24
A10: For 1-10 riders 1 place
A11: Placings | B11: 1D | C11: 2D | D11: 3D
A12: 1st | B12: =$B$7*$F$12 -> 12 | C12: =$C$7*$F$12 -> 7.2 | D12: =$D$7*$F$12 -> 4.8 | E12: è | F12: 1
A13: Totals | B13: =SUM(B12:B12) -> 12 | C13: =SUM(C12:C12) -> 7.2 | D13: =SUM(D12:D12) -> 4.8 | E13: =SUM(B13:D13) -> 24 | F13: =SUM(F12) -> 1
A15: For 11-15 riders 2 places
A16: Placings | B16: 1D | C16: 2D | D16: 3D
A17: 1st | B17: =$B$7*$F$17 -> 7.2 | C17: =$C$7*$F$17 -> 4.32 | D17: =$D$7*$F$17 -> 2.88 | E17: è | F17: 0.6
A18: 2nd | B18: =$B$7*$F$18 -> 4.8 | C18: =$C$7*$F$18 -> 2.88 | D18: =$D$7*$F$18 -> 1.92 | E18: è | F18: 0.4
A19: Totals | B19: =SUM(B17:B18) -> 12 | C19: =SUM(C17:C18) -> 7.2 | D19: =SUM(D17:D18) -> 4.8 | E19: =SUM(B19:D19) -> 24 | F19: =SUM(F17:F18) -> 1
A21: For 16-30 riders 3 places
A22: Placings | B22: 1D | C22: 2D | D22: 3D
A23: 1st | B23: =$B$7*$F$23 -> 6 | C23: =$C$7*$F$23 -> 3.6 | D23: =$D$7*$F$23 -> 2.4 | E23: è | F23: 0.5
A24: 2nd | B24: =$B$7*$F$24 -> 3.6 | C24: =$C$7*$F$24 -> 2.16 | D24: =$D$7*$F$24 -> 1.44 | E24: è | F24: 0.3
A25: 3rd | B25: =$B$7*$F$25 -> 2.4 | C25: =$C$7*$F$25 -> 1.44 | D25: =$D$7*$F$25 -> 0.96 | E25: è | F25: 0.2
A26: Totals | B26: =SUM(B23:B25) -> 12 | C26: =SUM(C23:C25) -> 7.2 | D26: =SUM(D22:D25) -> 4.8 | E26: =SUM(B26:D26) -> 24 | F26: =SUM(F23:F25) -> 1
A28: For 31-60 riders 4 places
A29: Placings | B29: 1D | C29: 2D | D29: 3D
A30: 1st | B30: =$B$7*$F$30 -> 5.04 | C30: =$C$7*$F$30 -> 3.024 | D30: =$D$7*$F$30 -> 2.016 | E30: è | F30: 0.42
A31: 2nd | B31: =$B$7*$F$31 -> 3.48 | C31: =$C$7*$F$31 -> 2.088 | D31: =$D$7*$F$31 -> 1.392 | E31: è | F31: 0.29
A32: 3rd | B32: =$B$7*$F$32 -> 2.28 | C32: =$C$7*$F$32 -> 1.368 | D32: =$D$7*$F$32 -> 0.912 | E32: è | F32: 0.19
A33: 4th | B33: =$B$7*$F$33 -> 1.2 | C33: =$C$7*$F$33 -> 0.72 | D33: =$D$7*$F$33 -> 0.48 | E33: è | F33: 0.1
A34: Totals | B34: =SUM(B30:B33) -> 12 | C34: =SUM(C30:C33) -> 7.2 | D34: =SUM(D30:D33) -> 4.8 | E34: =SUM(B34:D34) -> 24 | F34: =SUM(F30:F33) -> 1
A36: For 61-90 riders 5 places
A37: Placings | B37: 1D | C37: 2D | D37: 3D
A38: 1st | B38: =$B$7*$F$38 -> 4.56 | C38: =$C$7*$F$38 -> 2.736 | D38: =$D$7*$F$38 -> 1.824 | E38: è | F38: 0.38
A39: 2nd | B39: =$B$7*$F$39 -> 3.36 | C39: =$C$7*$F$39 -> 2.016 | D39: =$D$7*$F$39 -> 1.344 | E39: è | F39: 0.28
A40: 3rd | B40: =$B$7*$F$40 -> 2.16 | C40: =$C$7*$F$40 -> 1.296 | D40: =$D$7*$F$40 -> 0.864 | E40: è | F40: 0.18
A41: 4th | B41: =$B$7*$F$41 -> 1.2 | C41: =$C$7*$F$41 -> 0.72 | D41: =$D$7*$F$41 -> 0.48 | E41: è | F41: 0.1
A42: 5th | B42: =$B$7*$F$42 -> 0.72 | C42: =$C$7*$F$42 -> 0.432 | D42: =$D$7*$F$42 -> 0.288 | E42: è | F42: 0.06
A43: Totals | B43: =SUM(B38:B42) -> 12 | C43: =SUM(C38:C42) -> 7.2 | D43: =SUM(D38:D42) -> 4.8 | E43: =SUM(B43:D43) -> 24 | F43: =SUM(F38:F42) -> 1
A45: For 91-120 riders 6 places
A46: Placings | B46: 1D | C46: 2D | D46: 3D
A47: 1st | B47: =$B$7*$F$47 -> 4.32 | C47: =$C$7*$F$47 -> 2.592 | D47: =$D$7*$F$47 -> 1.728 | E47: è | F47: 0.36
A48: 2nd | B48: =$B$7*$F$48 -> 3.12 | C48: =$C$7*$F$48 -> 1.872 | D48: =$D$7*$F$48 -> 1.248 | E48: è | F48: 0.26
A49: 3rd | B49: =$B$7*$F$49 -> 1.92 | C49: =$C$7*$F$49 -> 1.152 | D49: =$D$7*$F$49 -> 0.768 | E49: è | F49: 0.16
A50: 4th | B50: =$B$7*$F$50 -> 1.2 | C50: =$C$7*$F$50 -> 0.72 | D50: =$D$7*$F$50 -> 0.48 | E50: è | F50: 0.1
A51: 5th | B51: =$B$7*$F$51 -> 0.84 | C51: =$C$7*$F$51 -> 0.504 | D51: =$D$7*$F$51 -> 0.336 | E51: è | F51: 0.07
A52: 6th | B52: =$B$7*$F$52 -> 0.6 | C52: =$C$7*$F$52 -> 0.36 | D52: =$D$7*$F$52 -> 0.24 | E52: è | F52: 0.05
A53: Totals | B53: =SUM(B47:B52) -> 12 | C53: =SUM(C47:C52) -> 7.2 | D53: =SUM(D47:D52) -> 4.8 | E53: =SUM(B53:D53) -> 24 | F53: =SUM(F47:F52) -> 1
A55: For 121-200 riders 7 places
A56: Placings | B56: 1D | C56: 2D | D56: 3D
A57: 1st | B57: =$B$7*$F$57 -> 3.12 | C57: =$C$7*$F$57 -> 1.872 | D57: =$D$7*$F$57 -> 1.248 | E57: è | F57: 0.26
A58: 2nd | B58: =$B$7*$F$58 -> 2.4 | C58: =$C$7*$F$58 -> 1.44 | D58: =$D$7*$F$58 -> 0.96 | E58: è | F58: 0.2
A59: 3rd | B59: =$B$7*$F$59 -> 1.8 | C59: =$C$7*$F$59 -> 1.08 | D59: =$D$7*$F$59 -> 0.72 | E59: è | F59: 0.15
A60: 4th | B60: =$B$7*$F$60 -> 1.44 | C60: =$C$7*$F$60 -> 0.864 | D60: =$D$7*$F$60 -> 0.576 | E60: è | F60: 0.12
A61: 5th | B61: =$B$7*$F$61 -> 1.2 | C61: =$C$7*$F$61 -> 0.72 | D61: =$D$7*$F$61 -> 0.48 | E61: è | F61: 0.1
A62: 6th | B62: =$B$7*$F$62 -> 1.08 | C62: =$C$7*$F$62 -> 0.648 | D62: =$D$7*$F$62 -> 0.432 | E62: è | F62: 0.09
A63: 7th | B63: =$B$7*$F$63 -> 0.96 | C63: =$C$7*$F$63 -> 0.576 | D63: =$D$7*$F$63 -> 0.384 | E63: è | F63: 0.08
A64: Totals | B64: =SUM(B57:B63) -> 12 | C64: =SUM(C57:C63) -> 7.2 | D64: =SUM(D57:D63) -> 4.8 | E64: =SUM(B64:D64) -> 24 | F64: =SUM(F57:F63) -> 1
A66: For 201 or more riders 8 places
A67: Placings | B67: 1D | C67: 2D | D67: 3D
A68: 1st | B68: =$B$7*0.24 -> 2.88 | C68: =$C$7*0.24 -> 1.728 | D68: =$D$7*0.24 -> 1.152 | E68: è | F68: 0.24
A69: 2nd | B69: =$B$7*0.18 -> 2.16 | C69: =$C$7*0.18 -> 1.296 | D69: =$D$7*0.18 -> 0.864 | E69: è | F69: 0.18
A70: 3rd | B70: =$B$7*0.15 -> 1.8 | C70: =$C$7*0.15 -> 1.08 | D70: =$D$7*0.15 -> 0.72 | E70: è | F70: 0.15
A71: 4th | B71: =$B$7*0.12 -> 1.44 | C71: =$C$7*0.12 -> 0.864 | D71: =$D$7*0.12 -> 0.576 | E71: è | F71: 0.12
A72: 5th | B72: =$B$7*0.1 -> 1.2 | C72: =$C$7*0.1 -> 0.72 | D72: =$D$7*0.1 -> 0.48 | E72: è | F72: 0.1
A73: 6th | B73: =$B$7*0.08 -> 0.96 | C73: =$C$7*0.08 -> 0.576 | D73: =$D$7*0.08 -> 0.384 | E73: è | F73: 0.08
A74: 7th | B74: =$B$7*0.07 -> 0.84 | C74: =$C$7*0.07 -> 0.504 | D74: =$D$7*0.07 -> 0.336 | E74: è | F74: 0.07
A75: 8th | B75: =$B$7*0.06 -> 0.72 | C75: =$C$7*0.06 -> 0.432 | D75: =$D$7*0.06 -> 0.288 | E75: è | F75: 0.06
A76: Totals | B76: =SUM(B68:B75) -> 12 | C76: =SUM(C68:C75) -> 7.2 | D76: =SUM(D68:D75) -> 4.8 | E76: =SUM(B76:D76) -> 24 | F76: =SUM(F68:F75) -> 1

Sheet 4D Payout BBR (hidden)
A1: 4D Payout BBR
A2: Entry Fee | B2: # Entries | C2: % Payback | D2: $ From Entry | E2: Added $ | F2: Total Payout
A3: 40 | B3: 200 | C3: 0.8 | D3: =$A$3*$C$3*$B$3 -> 6400 | E3: 1100 | F3: =($A$3*$C$3)*$B$3+$E$3 -> 7500
A5: % in each D | B5: 0.35 | C5: 0.3 | D5: 0.2 | E5: 0.15 | F5: Total % Payout | G5: =SUM(B5:E5) -> 1
B6: 1D | C6: 2D | D6: 3D | E6: 4D
B7: =(($A$3*$B$3*$C$3*0.35)+($E$3/4)) -> 2515 | C7: =(($A$3*$B$3*$C$3*0.3)+($E$3/4)) -> 2195 | D7: =(($A$3*$B$3*$C$3*0.2)+($E$3/4)) -> 1555 | E7: =(($A$3*$B$3*$C$3*0.15)+($E$3/4)) -> 1235
A8: Totals | B8: =SUM(B7) -> 2515 | C8: =SUM(C7) -> 2195 | D8: 1555 | E8: 1235 | F8: =SUM(B8:E8) -> 7500
A10: For 1-16 riders 1 place
A11: Placings | B11: 1D | C11: 2D | D11: 3D | E11: 4D
A12: 1st | B12: =$B$7*$G$12 -> 2515 | C12: =$C$7*$G$12 -> 2195 | D12: =$D$7*$G$12 -> 1555 | E12: =$E$7*$G$12 -> 1235 | F12: è | G12: 1
A13: Totals | B13: =SUM(B12:B12) -> 2515 | C13: =SUM(C12:C12) -> 2195 | D13: =SUM(D12:D12) -> 1555 | E13: =SUM(E12:E12) -> 1235 | F13: =SUM(B13:E13) -> 7500 | G13: =SUM(G12) -> 1
A15: For 17-33 riders 2 places
A16: Placings | B16: 1D | C16: 2D | D16: 3D | E16: 4D
A17: 1st | B17: =$B$7*$G$17 -> 1509 | C17: =$C$7*$G$17 -> 1317 | D17: =$D$7*$G$17 -> 933 | E17: =$E$7*$G$17 -> 741 | F17: è | G17: 0.6
A18: 2nd | B18: =$B$7*$G$18 -> 1006 | C18: =$C$7*$G$18 -> 878 | D18: =$D$7*$G$18 -> 622 | E18: =$E$7*$G$18 -> 494 | F18: è | G18: 0.4
A19: Totals | B19: =SUM(B17:B18) -> 2515 | C19: =SUM(C17:C18) -> 2195 | D19: =SUM(D17:D18) -> 1555 | E19: =SUM(E17:E18) -> 1235 | F19: =SUM(B19:E19) -> 7500 | G19: =SUM(G17:G18) -> 1
A21: For 34-66 riders 3 places
A22: Placings | B22: 1D | C22: 2D | D22: 3D | E22: 4D
A23: 1st | B23: =$B$7*$G$23 -> 1257.5 | C23: =$C$7*$G$23 -> 1097.5 | D23: =$D$7*$G$23 -> 777.5 | E23: =$E$7*$G$23 -> 617.5 | F23: è | G23: 0.5
A24: 2nd | B24: =$B$7*$G$24 -> 754.5 | C24: =$C$7*$G$24 -> 658.5 | D24: =$D$7*$G$24 -> 466.5 | E24: =$E$7*$G$24 -> 370.5 | F24: è | G24: 0.3
A25: 3rd | B25: =$B$7*$G$25 -> 503 | C25: =$C$7*$G$25 -> 439 | D25: =$D$7*$G$25 -> 311 | E25: =$E$7*$G$25 -> 247 | F25: è | G25: 0.2
A26: Totals | B26: =SUM(B23:B25) -> 2515 | C26: =SUM(C23:C25) -> 2195 | D26: =SUM(D23:D25) -> 1555 | E26: =SUM(E23:E25) -> 1235 | F26: =SUM(B26:E26) -> 7500 | G26: =SUM(G23:G25) -> 1
A28: For 97-95 riders 4 places
A29: Placings | B29: 1D | C29: 2D | D29: 3D | E29: 4D
A30: 1st | B30: =$B$7*$G$30 -> 1006 | C30: =$C$7*$G$30 -> 878 | D30: =$D$7*$G$30 -> 622 | E30: =$E$7*$G$30 -> 494 | F30: è | G30: 0.4
A31: 2nd | B31: =$B$7*$G$31 -> 754.5 | C31: =$C$7*$G$31 -> 658.5 | D31: =$D$7*$G$31 -> 466.5 | E31: =$E$7*$G$31 -> 370.5 | F31: è | G31: 0.3
A32: 3rd | B32: =$B$7*$G$32 -> 503 | C32: =$C$7*$G$32 -> 439 | D32: =$D$7*$G$32 -> 311 | E32: =$E$7*$G$32 -> 247 | F32: è | G32: 0.2
A33: 4th | B33: =$B$7*$G$33 -> 251.5 | C33: =$C$7*$G$33 -> 219.5 | D33: =$D$7*$G$33 -> 155.5 | E33: =$E$7*$G$33 -> 123.5 | F33: è | G33: 0.1
A34: Totals | B34: =SUM(B30:B33) -> 2515 | C34: =SUM(C30:C33) -> 2195 | D34: =SUM(D30:D33) -> 1555 | E34: =SUM(E30:E33) -> 1235 | F34: =SUM(B34:E34) -> 7500 | G34: =SUM(G30:G33) -> 1
A36: For 96-133 riders 5 places
A37: Placings | B37: 1D | C37: 2D | D37: 3D | E37: 4D
A38: 1st | B38: =$B$7*$G$38 -> 829.95 | C38: =$C$7*$G$38 -> 724.35 | D38: =$D$7*G38 -> 513.15 | E38: =$E$7*$G$38 -> 407.55 | F38: è | G38: 0.33
A39: 2nd | B39: =$B$7*$G$39 -> 679.05 | C39: =$C$7*$G$39 -> 592.65 | D39: =$D$7*$G$39 -> 419.85 | E39: =$E$7*$G$39 -> 333.45 | F39: è | G39: 0.27
A40: 3rd | B40: =$B$7*$G$40 -> 503 | C40: =$C$7*$G$40 -> 439 | D40: =$D$7*$G$40 -> 311 | E40: =$E$7*$G$40 -> 247 | F40: è | G40: 0.2
A41: 4th | B41: =$B$7*$G$41 -> 326.95 | C41: =$C$7*$G$41 -> 285.35 | D41: =$D$7*$G$41 -> 202.15 | E41: =$E$7*$G$41 -> 160.55 | F41: è | G41: 0.13
A42: 5th | B42: =$B$7*$G$42 -> 176.05 | C42: =$C$7*$G$42 -> 153.65 | D42: =$D$7*$G$42 -> 108.85 | E42: =$E$7*$G$42 -> 86.45 | F42: è | G42: 0.07
A43: Totals | B43: =SUM(B38:B42) -> 2515 | C43: =SUM(C38:C42) -> 2195 | D43: =SUM(D38:D42) -> 1555 | E43: =SUM(E38:E42) -> 1235 | F43: =SUM(B43:E43) -> 7500 | G43: =SUM(G38:G42) -> 1
A45: For 134-166 riders 6 places
A46: Placings | B46: 1D | C46: 2D | D46: 3D | E46: 4D
A47: 1st | B47: =$B$7*$G$47 -> 729.35 | C47: =$C$7*$G$47 -> 636.55 | D47: =$D$7*$G$47 -> 450.95 | E47: =$E$7*$G$47 -> 358.15 | F47: è | G47: 0.29
A48: 2nd | B48: =$B$7*$G$48 -> 603.6 | C48: =$C$7*$G$48 -> 526.8 | D48: =$D$7*$G$48 -> 373.2 | E48: =$E$7*$G$48 -> 296.4 | F48: è | G48: 0.24
A49: 3rd | B49: =$B$7*$G$49 -> 477.85 | C49: =$C$7*$G$49 -> 417.05 | D49: =$D$7*$G$49 -> 295.45 | E49: =$E$7*$G$49 -> 234.65 | F49: è | G49: 0.19
A50: 4th | B50: =$B$7*$G$50 -> 352.1 | C50: =$C$7*$G$50 -> 307.3 | D50: =$D$7*$G$50 -> 217.7 | E50: =$E$7*$G$50 -> 172.9 | F50: è | G50: 0.14
A51: 5th | B51: =$B$7*$G$51 -> 226.35 | C51: =$C$7*$G$51 -> 197.55 | D51: =$D$7*$G$51 -> 139.95 | E51: =$E$7*$G$51 -> 111.15 | F51: è | G51: 0.09
A52: 6th | B52: =$B$7*$G$52 -> 125.75 | C52: =$C$7*$G$52 -> 109.75 | D52: =$D$7*$G$52 -> 77.75 | E52: =$E$7*$G$52 -> 61.75 | F52: è | G52: 0.05
A53: Totals | B53: =SUM(B47:B52) -> 2515 | C53: =SUM(C47:C52) -> 2195 | D53: =SUM(D47:D52) -> 1555 | E53: =SUM(E47:E52) -> 1235 | F53: =SUM(B53:E53) -> 7500 | G53: =SUM(G47:G52) -> 1
A55: For 167-222 riders 8 places
A56: Placings | B56: 1D | C56: 2D | D56: 3D | E56: 4D
A57: 1st | B57: =$B$7*$G$57 -> 603.6 | C57: =$C$7*$G$57 -> 526.8 | D57: =$D$7*$G$57 -> 373.2 | E57: =$E$7*$G$57 -> 296.4 | F57: è | G57: 0.24
A58: 2nd | B58: =$B$7*$G$58 -> 503 | C58: =$C$7*$G$58 -> 439 | D58: =$D$7*$G$58 -> 311 | E58: =$E$7*$G$58 -> 247 | F58: è | G58: 0.2
A59: 3rd | B59: =$B$7*$G$59 -> 427.55 | C59: =$C$7*$G$59 -> 373.15 | D59: =$D$7*$G$59 -> 264.35 | E59: =$E$7*$G$59 -> 209.95 | F59: è | G59: 0.17
A60: 4th | B60: =$B$7*$G$60 -> 326.95 | C60: =$C$7*$G$60 -> 285.35 | D60: =$D$7*$G$60 -> 202.15 | E60: =$E$7*$G$60 -> 160.55 | F60: è | G60: 0.13
A61: 5th | B61: =$B$7*$G$61 -> 251.5 | C61: =$C$7*$G$61 -> 219.5 | D61: =$D$7*$G$61 -> 155.5 | E61: =$E$7*$G$61 -> 123.5 | F61: è | G61: 0.1
A62: 6th | B62: =$B$7*$G$62 -> 176.05 | C62: =$C$7*$G$62 -> 153.65 | D62: =$D$7*$G$62 -> 108.85 | E62: =$E$7*$G$62 -> 86.45 | F62: è | G62: 0.07
A63: 7th | B63: =$B$7*$G$63 -> 125.75 | C63: =$C$7*$G$63 -> 109.75 | D63: =$D$7*$G$63 -> 77.75 | E63: =$E$7*$G$63 -> 61.75 | F63: è | G63: 0.05
A64: 8th | B64: =$B$7*$G$64 -> 100.6 | C64: =$C$7*$G$64 -> 87.8 | D64: =$D$7*$G$64 -> 62.2 | E64: =$E$7*$G$64 -> 49.4 | F64: è | G64: 0.04
A65: Totals | B65: =SUM(B57:B64) -> 2515 | C65: =SUM(C57:C64) -> 2195 | D65: =SUM(D57:D64) -> 1555 | E65: =SUM(E57:E64) -> 1235 | F65: =SUM(B65:E65) -> 7500 | G65: =SUM(G57:G64) -> 1
A67: For 223-333 riders 10 places
A68: Placings | B68: 1D | C68: 2D | D68: 3D | E68: 4D
A69: 1st | B69: =$B$7*$G$69 -> 528.15 | C69: =$C$7*$G$69 -> 460.95 | D69: =$D$7*$G$69 -> 326.55 | E69: =$E$7*$G$69 -> 259.35 | F69: è | G69: 0.21
A70: 2nd | B70: =$B$7*$G$70 -> 452.7 | C70: =$C$7*$G$70 -> 395.1 | D70: =$D$7*$G$70 -> 279.9 | E70: =$E$7*$G$70 -> 222.3 | F70: è | G70: 0.18
A71: 3rd | B71: =$B$7*$G$71 -> 377.25 | C71: =$C$7*$G$71 -> 329.25 | D71: =$D$7*$G$71 -> 233.25 | E71: =$E$7*$G$71 -> 185.25 | F71: è | G71: 0.15
A72: 4th | B72: =$B$7*$G$72 -> 301.8 | C72: =$C$7*$G$72 -> 263.4 | D72: =$D$7*$G$72 -> 186.6 | E72: =$E$7*$G$72 -> 148.2 | F72: è | G72: 0.12
A73: 5th | B73: =$B$7*$G$73 -> 226.35 | C73: =$C$7*$G$73 -> 197.55 | D73: =$D$7*$G$73 -> 139.95 | E73: =$E$7*$G$73 -> 111.15 | F73: è | G73: 0.09
A74: 6th | B74: =$B$7*$G$74 -> 176.05 | C74: =$C$7*$G$74 -> 153.65 | D74: =$D$7*$G$74 -> 108.85 | E74: =$E$7*$G$74 -> 86.45 | F74: è | G74: 0.07
A75: 7th | B75: =$B$7*$G$75 -> 150.9 | C75: =$C$7*$G$75 -> 131.7 | D75: =$D$7*$G$75 -> 93.3 | E75: =$E$7*$G$75 -> 74.1 | F75: è | G75: 0.06
A76: 8th | B76: =$B$7*$G$76 -> 125.75 | C76: =$C$7*$G$76 -> 109.75 | D76: =$D$7*$G$76 -> 77.75 | E76: =$E$7*$G$76 -> 61.75 | F76: è | G76: 0.05
A77: 9th | B77: =$B$7*$G$77 -> 100.6 | C77: =$C$7*$G$77 -> 87.8 | D77: =$D$7*$G$77 -> 62.2 | E77: =$E$7*$G$77 -> 49.4 | F77: è | G77: 0.04
A78: 10th | B78: =$B$7*$G$78 -> 75.45 | C78: =$C$7*$G$78 -> 65.85 | D78: =$D$7*$G$78 -> 46.65 | E78: =$E$7*$G$78 -> 37.05 | F78: è | G78: 0.03
A79: Totals | B79: =SUM(B69:B78) -> 2515 | C79: =SUM(C69:C78) -> 2195 | D79: =SUM(D69:D78) -> 1555 | E79: =SUM(E69:E78) -> 1235 | F79: =B79+C79+D79+E79 -> 7500 | G79: =SUM(G69:G78) -> 1
A81: For 334-500 riders 12 places
A82: Placings | B82: 1D | C82: 2D | D82: 3D | E82: 4D
A83: 1st | B83: =$B$7*$G$83 -> 477.85 | C83: =$C$7*$G$83 -> 417.05 | D83: =$D$7*$G$83 -> 295.45 | E83: =$E$7*$G$83 -> 234.65 | F83: è | G83: 0.19
A84: 2nd | B84: =$B$7*$G$84 -> 377.25 | C84: =$C$7*$G$84 -> 329.25 | D84: =$D$7*$G$84 -> 233.25 | E84: =$E$7*$G$84 -> 185.25 | F84: è | G84: 0.15
A85: 3rd | B85: =$B$7*$G$85 -> 301.8 | C85: =$C$7*$G$85 -> 263.4 | D85: =$D$7*$G$85 -> 186.6 | E85: =$E$7*$G$85 -> 148.2 | F85: è | G85: 0.12
A86: 4th | B86: =$B$7*$G$86 -> 251.5 | C86: =$C$7*$G$86 -> 219.5 | D86: =$D$7*$G$86 -> 155.5 | E86: =$E$7*$G$86 -> 123.5 | F86: è | G86: 0.1
A87: 5th | B87: =$B$7*$G$87 -> 226.35 | C87: =$C$7*$G$87 -> 197.55 | D87: =$D$7*$G$87 -> 139.95 | E87: =$E$7*$G$87 -> 111.15 | F87: è | G87: 0.09
A88: 6th | B88: =$B$7*$G$88 -> 201.2 | C88: =$C$7*$G$88 -> 175.6 | D88: =$D$7*$G$88 -> 124.4 | E88: =$E$7*$G$88 -> 98.8 | F88: è | G88: 0.08
A89: 7th | B89: =$B$7*$G$89 -> 176.05 | C89: =$C$7*$G$89 -> 153.65 | D89: =$D$7*$G$89 -> 108.85 | E89: =$E$7*$G$89 -> 86.45 | F89: è | G89: 0.07
A90: 8th | B90: =$B$7*$G$90 -> 150.9 | C90: =$C$7*$G$90 -> 131.7 | D90: =$D$7*$G$90 -> 93.3 | E90: =$E$7*$G$90 -> 74.1 | F90: è | G90: 0.06
A91: 9th | B91: =$B$7*$G$91 -> 125.75 | C91: =$C$7*$G$91 -> 109.75 | D91: =$D$7*$G$91 -> 77.75 | E91: =$E$7*$G$91 -> 61.75 | F91: è | G91: 0.05
A92: 10th | B92: =$B$7*$G$92 -> 100.6 | C92: =$C$7*$G$92 -> 87.8 | D92: =$D$7*$G$92 -> 62.2 | E92: =$E$7*$G$92 -> 49.4 | F92: è | G92: 0.04
A93: 11th | B93: =$B$7*$G$93 -> 75.45 | C93: =$C$7*$G$93 -> 65.85 | D93: =$D$7*$G$93 -> 46.65 | E93: =$E$7*$G$93 -> 37.05 | F93: è | G93: 0.03
A94: 12th | B94: =$B$7*$G$94 -> 50.3 | C94: =$C$7*$G$94 -> 43.9 | D94: =$D$7*$G$94 -> 31.1 | E94: =$E$7*$G$94 -> 24.7 | F94: è | G94: 0.02
A95: Totals | B95: =SUM(B83:B94) -> 2515 | C95: =SUM(C83:C94) -> 2195 | D95: 1555 | E95: 1235 | F95: =B95+C95+D95+E95 -> 7500 | G95: =SUM(G83:G94) -> 1
A97: For 501-750 riders 15 places
A98: Placings | B98: 1D | C98: 2D | D98: 3D | E98: 4D
A99: 1st | B99: =$B$7*$G$99 -> 452.7 | C99: =$C$7*$G$99 -> 395.1 | D99: =$D$7*$G$99 -> 279.9 | E99: =$E$7*$G$99 -> 222.3 | F99: è | G99: 0.18
A100: 2nd | B100: =$B$7*$G$100 -> 377.25 | C100: =$C$7*$G$100 -> 329.25 | D100: =$D$7*$G$100 -> 233.25 | E100: =$E$7*$G$100 -> 185.25 | F100: è | G100: 0.15
A101: 3rd | B101: =$B$7*$G$101 -> 301.8 | C101: =$C$7*$G$101 -> 263.4 | D101: =$D$7*$G$101 -> 186.6 | E101: =$E$7*$G$101 -> 148.2 | F101: è | G101: 0.12
A102: 4th | B102: =$B$7*$G$102 -> 251.5 | C102: =$C$7*$G$102 -> 219.5 | D102: =$D$7*$G$102 -> 155.5 | E102: =$E$7*$G$102 -> 123.5 | F102: è | G102: 0.1
A103: 5th | B103: =$B$7*$G$103 -> 213.775 | C103: =$C$7*$G$103 -> 186.575 | D103: =$D$7*$G$103 -> 132.175 | E103: =$E$7*$G$103 -> 104.975 | F103: è | G103: 0.085
A104: 6th | B104: =$B$7*$G$104 -> 176.05 | C104: =$C$7*$G$104 -> 153.65 | D104: =$D$7*$G$104 -> 108.85 | E104: =$E$7*$G$104 -> 86.45 | F104: è | G104: 0.07
A105: 7th | B105: =$B$7*$G$105 -> 150.9 | C105: =$C$7*$G$105 -> 131.7 | D105: =$D$7*$G$105 -> 93.3 | E105: =$E$7*$G$105 -> 74.1 | F105: è | G105: 0.06
A106: 8th | B106: =$B$7*$G$106 -> 125.75 | C106: =$C$7*$G$106 -> 109.75 | D106: =$D$7*$G$106 -> 77.75 | E106: =$E$7*$G$106 -> 61.75 | F106: è | G106: 0.05
A107: 9th | B107: =$B$7*$G$107 -> 106.8875 | C107: =$C$7*$G$107 -> 93.2875 | D107: =$D$7*$G$107 -> 66.0875 | E107: =$E$7*$G$107 -> 52.4875 | F107: è | G107: 0.0425
A108: 10th | B108: =$B$7*$G$108 -> 88.025 | C108: =$C$7*$G$108 -> 76.825 | D108: =$D$7*$G$108 -> 54.425 | E108: =$E$7*$G$108 -> 43.225 | F108: è | G108: 0.035
A109: 11th | B109: =$B$7*$G$109 -> 75.45 | C109: =$C$7*$G$109 -> 65.85 | D109: =$D$7*$G$109 -> 46.65 | E109: =$E$7*$G$109 -> 37.05 | F109: è | G109: 0.03
A110: 12th | B110: =$B$7*$G$110 -> 62.875 | C110: =$C$7*$G$110 -> 54.875 | D110: =$D$7*$G$110 -> 38.875 | E110: =$E$7*$G$110 -> 30.875 | F110: è | G110: 0.025
A111: 13th | B111: =$B$7*$G$111 -> 50.3 | C111: =$C$7*$G$111 -> 43.9 | D111: =$D$7*$G$111 -> 31.1 | E111: =$E$7*$G$111 -> 24.7 | F111: è | G111: 0.02
A112: 14th | B112: =$B$7*$G$112 -> 44.0125 | C112: =$C$7*$G$112 -> 38.4125 | D112: =$D$7*$G$112 -> 27.2125 | E112: =$E$7*$G$112 -> 21.6125 | F112: è | G112: 0.0175
A113: 15th | B113: =$B$7*$G$113 -> 37.725 | C113: =$C$7*$G$113 -> 32.925 | D113: =$D$7*$G$113 -> 23.325 | E113: =$E$7*$G$113 -> 18.525 | F113: è | G113: 0.015
A114: Totals | B114: =SUM(B99:B113) -> 2515 | C114: =SUM(C99:C113) -> 2195 | D114: 1555 | E114: 1235 | F114: =B114+C114+D114+E114 -> 7500 | G114: =SUM(G99:G113) -> 1
A116: For 751-1200 riders 20 places
A117: Placings | B117: 1D | C117: 2D | D117: 3D | E117: 4D
A118: 1st | B118: =$B$7*$G$118 -> 352.1 | C118: =$C$7*$G$118 -> 307.3 | D118: =$D$7*$G$118 -> 217.7 | E118: =$E$7*$G$118 -> 172.9 | F118: è | G118: 0.14
A119: 2nd | B119: =$B$7*$G$119 -> 276.65 | C119: =$C$7*$G$119 -> 241.45 | D119: =$D$7*$G$119 -> 171.05 | E119: =$E$7*$G$119 -> 135.85 | F119: è | G119: 0.11
A120: 3rd | B120: =$B$7*$G$120 -> 226.35 | C120: =$C$7*$G$120 -> 197.55 | D120: =$D$7*$G$120 -> 139.95 | E120: =$E$7*$G$120 -> 111.15 | F120: è | G120: 0.09
A121: 4th | B121: =$B$7*$G$121 -> 193.655 | C121: =$C$7*$G$121 -> 169.015 | D121: =$D$7*$G$121 -> 119.735 | E121: =$E$7*$G$121 -> 95.095 | F121: è | G121: 0.077
A122: 5th | B122: =$B$7*$G$122 -> 176.05 | C122: =$C$7*$G$122 -> 153.65 | D122: =$D$7*$G$122 -> 108.85 | E122: =$E$7*$G$122 -> 86.45 | F122: è | G122: 0.07
A123: 6th | B123: =$B$7*$G$123 -> 163.475 | C123: =$C$7*$G$123 -> 142.675 | D123: =$D$7*$G$123 -> 101.075 | E123: =$E$7*$G$123 -> 80.275 | F123: è | G123: 0.065
A124: 7th | B124: =$B$7*$G$124 -> 150.9 | C124: =$C$7*$G$124 -> 131.7 | D124: =$D$7*$G$124 -> 93.3 | E124: =$E$7*$G$124 -> 74.1 | F124: è | G124: 0.06
A125: 8th | B125: =$B$7*$G$125 -> 138.325 | C125: =$C$7*$G$125 -> 120.725 | D125: =$D$7*$G$125 -> 85.525 | E125: =$E$7*$G$125 -> 67.925 | F125: è | G125: 0.055
A126: 9th | B126: =$B$7*$G$126 -> 125.75 | C126: =$C$7*$G$126 -> 109.75 | D126: =$D$7*$G$126 -> 77.75 | E126: =$E$7*$G$126 -> 61.75 | F126: è | G126: 0.05
A127: 10th | B127: =$B$7*$G$127 -> 113.175 | C127: =$C$7*$G$127 -> 98.775 | D127: =$D$7*$G$127 -> 69.975 | E127: =$E$7*$G$127 -> 55.575 | F127: è | G127: 0.045
A128: 11th | B128: =$B$7*$G$128 -> 100.6 | C128: =$C$7*$G$128 -> 87.8 | D128: =$D$7*$G$128 -> 62.2 | E128: =$E$7*$G$128 -> 49.4 | F128: è | G128: 0.04
A129: 12th | B129: =$B$7*$G$129 -> 93.055 | C129: =$C$7*$G$129 -> 81.215 | D129: =$D$7*$G$129 -> 57.535 | E129: =$E$7*$G$129 -> 45.695 | F129: è | G129: 0.037
A130: 13th | B130: =$B$7*$G$130 -> 82.995 | C130: =$C$7*$G$130 -> 72.435 | D130: =$D$7*$G$130 -> 51.315 | E130: =$E$7*$G$130 -> 40.755 | F130: è | G130: 0.033
A131: 14th | B131: =$B$7*$G$131 -> 72.935 | C131: =$C$7*$G$131 -> 63.655 | D131: =$D$7*$G$131 -> 45.095 | E131: =$E$7*$G$131 -> 35.815 | F131: è | G131: 0.029
A132: 15th | B132: =$B$7*$G$132 -> 62.875 | C132: =$C$7*$G$132 -> 54.875 | D132: =$D$7*$G$132 -> 38.875 | E132: =$E$7*$G$132 -> 30.875 | F132: è | G132: 0.025
A133: 16th | B133: =$B$7*$G$133 -> 52.815 | C133: =$C$7*$G$133 -> 46.095 | D133: =$D$7*$G$133 -> 32.655 | E133: =$E$7*$G$133 -> 25.935 | F133: è | G133: 0.021
A134: 17th | B134: =$B$7*$G$134 -> 42.755 | C134: =$C$7*$G$134 -> 37.315 | D134: =$D$7*$G$134 -> 26.435 | E134: =$E$7*$G$134 -> 20.995 | F134: è | G134: 0.017
A135: 18th | B135: =$B$7*$G$135 -> 35.21 | C135: =$C$7*$G$135 -> 30.73 | D135: =$D$7*$G$135 -> 21.77 | E135: =$E$7*$G$135 -> 17.29 | F135: è | G135: 0.014
A136: 19th | B136: =$B$7*$G$136 -> 30.18 | C136: =$C$7*$G$136 -> 26.34 | D136: =$D$7*$G$136 -> 18.66 | E136: =$E$7*$G$136 -> 14.82 | F136: è | G136: 0.012
A137: 20th | B137: =$B$7*$G$137 -> 25.15 | C137: =$C$7*$G$137 -> 21.95 | D137: =$D$7*$G$137 -> 15.55 | E137: =$E$7*$G$137 -> 12.35 | F137: è | G137: 0.01
A138: Totals | B138: =SUM(B118:B137) -> 2515 | C138: =SUM(C118:C137) -> 2195 | D138: 1555 | E138: 1235 | F138: =B138+C138+D138+E138 -> 7500 | G138: =SUM(G118:G137) -> 1
A140: For 1201 or More riders 30 places
A141: Placings | B141: 1D | C141: 2D | D141: 3D | E141: 4D
A142: 1st | B142: =$B$7*$G$142 -> 301.8 | C142: =$C$7*$G$142 -> 263.4 | D142: =$D$7*$G$142 -> 186.6 | E142: =$E$7*$G$142 -> 148.2 | F142: è | G142: 0.12
A143: 2nd | B143: =$B$7*$G$143 -> 238.925 | C143: =$C$7*$G$143 -> 208.525 | D143: =$D$7*$G$143 -> 147.725 | E143: =$E$7*$G$143 -> 117.325 | F143: è | G143: 0.095
A144: 3rd | B144: =$B$7*$G$144 -> 183.595 | C144: =$C$7*$G$144 -> 160.235 | D144: =$D$7*$G$144 -> 113.515 | E144: =$E$7*$G$144 -> 90.155 | F144: è | G144: 0.073
A145: 4th | B145: =$B$7*$G$145 -> 155.93 | C145: =$C$7*$G$145 -> 136.09 | D145: =$D$7*$G$145 -> 96.41 | E145: =$E$7*$G$145 -> 76.57 | F145: è | G145: 0.062
A146: 5th | B146: =$B$7*$G$146 -> 125.75 | C146: =$C$7*$G$146 -> 109.75 | D146: =$D$7*$G$146 -> 77.75 | E146: =$E$7*$G$146 -> 61.75 | F146: è | G146: 0.05
A147: 6th | B147: =$B$7*$G$147 -> 113.175 | C147: =$C$7*$G$147 -> 98.775 | D147: =$D$7*$G$147 -> 69.975 | E147: =$E$7*$G$147 -> 55.575 | F147: è | G147: 0.045
A148: 7th | B148: =$B$7*$G$148 -> 108.145 | C148: =$C$7*$G$148 -> 94.385 | D148: =$D$7*$G$148 -> 66.865 | E148: =$E$7*$G$148 -> 53.105 | F148: è | G148: 0.043
A149: 8th | B149: =$B$7*$G$149 -> 100.6 | C149: =$C$7*$G$149 -> 87.8 | D149: =$D$7*$G$149 -> 62.2 | E149: =$E$7*$G$149 -> 49.4 | F149: è | G149: 0.04
A150: 9th | B150: =$B$7*$G$150 -> 93.055 | C150: =$C$7*$G$150 -> 81.215 | D150: =$D$7*$G$150 -> 57.535 | E150: =$E$7*$G$150 -> 45.695 | F150: è | G150: 0.037
A151: 10th | B151: =$B$7*$G$151 -> 88.025 | C151: =$C$7*$G$151 -> 76.825 | D151: =$D$7*$G$151 -> 54.425 | E151: =$E$7*$G$151 -> 43.225 | F151: è | G151: 0.035
A152: 11th | B152: =$B$7*$G$152 -> 82.995 | C152: =$C$7*$G$152 -> 72.435 | D152: =$D$7*$G$152 -> 51.315 | E152: =$E$7*$G$152 -> 40.755 | F152: è | G152: 0.033
A153: 12th | B153: =$B$7*$G$153 -> 77.965 | C153: =$C$7*$G$153 -> 68.045 | D153: =$D$7*$G$153 -> 48.205 | E153: =$E$7*$G$153 -> 38.285 | F153: è | G153: 0.031
A154: 13th | B154: =$B$7*$G$154 -> 72.935 | C154: =$C$7*$G$154 -> 63.655 | D154: =$D$7*$G$154 -> 45.095 | E154: =$E$7*$G$154 -> 35.815 | F154: è | G154: 0.029
A155: 14th | B155: =$B$7*$G$155 -> 67.905 | C155: =$C$7*$G$155 -> 59.265 | D155: =$D$7*$G$155 -> 41.985 | E155: =$E$7*$G$155 -> 33.345 | F155: è | G155: 0.027
A156: 15th | B156: =$B$7*$G$156 -> 62.875 | C156: =$C$7*$G$156 -> 54.875 | D156: =$D$7*$G$156 -> 38.875 | E156: =$E$7*$G$156 -> 30.875 | F156: è | G156: 0.025
A157: 16th | B157: =$B$7*$G$157 -> 60.36 | C157: =$C$7*$G$157 -> 52.68 | D157: =$D$7*$G$157 -> 37.32 | E157: =$E$7*$G$157 -> 29.64 | F157: è | G157: 0.024
A158: 17th | B158: =$B$7*$G$158 -> 57.845 | C158: =$C$7*$G$158 -> 50.485 | D158: =$D$7*$G$158 -> 35.765 | E158: =$E$7*$G$158 -> 28.405 | F158: è | G158: 0.023
A159: 18th | B159: =$B$7*$G$159 -> 55.33 | C159: =$C$7*$G$159 -> 48.29 | D159: =$D$7*$G$159 -> 34.21 | E159: =$E$7*$G$159 -> 27.17 | F159: è | G159: 0.022
A160: 19th | B160: =$B$7*$G$160 -> 52.815 | C160: =$C$7*$G$160 -> 46.095 | D160: =$D$7*$G$160 -> 32.655 | E160: =$E$7*$G$160 -> 25.935 | F160: è | G160: 0.021
A161: 20th | B161: =$B$7*$G$161 -> 50.3 | C161: =$C$7*$G$161 -> 43.9 | D161: =$D$7*$G$161 -> 31.1 | E161: =$E$7*$G$161 -> 24.7 | F161: è | G161: 0.02
A162: 21st | B162: =$B$7*$G$162 -> 47.785 | C162: =$C$7*$G$162 -> 41.705 | D162: =$D$7*$G$162 -> 29.545 | E162: =$E$7*$G$162 -> 23.465 | F162: è | G162: 0.019
A163: 22nd | B163: =$B$7*$G$163 -> 45.27 | C163: =$C$7*$G$163 -> 39.51 | D163: =$D$7*$G$163 -> 27.99 | E163: =$E$7*$G$163 -> 22.23 | F163: è | G163: 0.018
A164: 23rd | B164: =$B$7*$G$164 -> 42.755 | C164: =$C$7*$G$164 -> 37.315 | D164: =$D$7*$G$164 -> 26.435 | E164: =$E$7*$G$164 -> 20.995 | F164: è | G164: 0.017
A165: 24th | B165: =$B$7*$G$165 -> 40.24 | C165: =$C$7*$G$165 -> 35.12 | D165: =$D$7*$G$165 -> 24.88 | E165: =$E$7*$G$165 -> 19.76 | F165: è | G165: 0.016
A166: 25th | B166: =$B$7*$G$166 -> 37.725 | C166: =$C$7*$G$166 -> 32.925 | D166: =$D$7*$G$166 -> 23.325 | E166: =$E$7*$G$166 -> 18.525 | F166: è | G166: 0.015
A167: 26th | B167: =$B$7*$G$167 -> 35.21 | C167: =$C$7*$G$167 -> 30.73 | D167: =$D$7*$G$167 -> 21.77 | E167: =$E$7*$G$167 -> 17.29 | F167: è | G167: 0.014
A168: 27th | B168: =$B$7*$G$168 -> 32.695 | C168: =$C$7*$G$168 -> 28.535 | D168: =$D$7*$G$168 -> 20.215 | E168: =$E$7*$G$168 -> 16.055 | F168: è | G168: 0.013
A169: 28th | B169: =$B$7*$G$169 -> 30.18 | C169: =$C$7*$G$169 -> 26.34 | D169: =$D$7*$G$169 -> 18.66 | E169: =$E$7*$G$169 -> 14.82 | F169: è | G169: 0.012
A170: 29th | B170: =$B$7*$G$170 -> 27.665 | C170: =$C$7*$G$170 -> 24.145 | D170: =$D$7*$G$170 -> 17.105 | E170: =$E$7*$G$170 -> 13.585 | F170: è | G170: 0.011
A171: 30th | B171: =$B$7*$G$171 -> 25.15 | C171: =$C$7*$G$171 -> 21.95 | D171: =$D$7*$G$171 -> 15.55 | E171: =$E$7*$G$171 -> 12.35 | F171: è | G171: 0.01
A172: Totals | B172: =SUM(B142:B171) -> 2515 | C172: =SUM(C142:C171) -> 2195 | D172: =SUM(D142:D171) -> 1555 | E172: =SUM(E142:E171) -> 1235 | F172: =B172+C172+D172+E172 -> 7500 | G172: =SUM(G142:G171) -> 1

Sheet 5D Payout BBR
A1: 5D Payout BBR
A2: Entry Fee | B2: # Entries | C2: % Payback | D2: $ From Entry | E2: Added $ | F2: Total Payout | G2: Total $ Held
A3: 50 | B3: 17 | C3: 0.8 | D3: =$A$3*$C$3*$B$3 -> 680 | F3: =($A$3*$C$3)*$B$3+$E$3 -> 680 | G3: =$A$3*(100%-$C$3)*$B$3 -> 170
A4: 13
A5: % in each D | B5: 0.3 | C5: 0.25 | D5: 0.2 | E5: 0.15 | F5: 0.1 | G5: Total % Payout | H5: =SUM(B5:F5) -> 1
B6: 1D | C6: 2D | D6: 3D | E6: 4D | F6: 5D
B7: =(($A$3*$B$3*$C$3*$B$5)+($E$3*$B$5)) -> 204 | C7: =(($A$3*$B$3*$C$3*$C$5)+($E$3*$C$5)) -> 170 | D7: =(($A$3*$B$3*$C$3*$D$5)+($E$3*$D$5)) -> 136 | E7: =(($A$3*$B$3*$C$3*$E$5)+($E$3*$E$5)) -> 102 | F7: =(($A$3*$B$3*$C$3*$F$5)+($E$3*$F$5)) -> 68
A8: Totals | B8: =SUM(B7) -> 204 | C8: =SUM(C7) -> 170 | D8: 136 | E8: 102 | F8: 68 | G8: =SUM(B8:F8) -> 680
A10: For 1-25 riders 1 place
A11: Placings | B11: 1D | C11: 2D | D11: 3D | E11: 4D | F11: 5D
A12: 1st | B12: =$B$7*$H$12 -> 204 | C12: =$C$7*$H$12 -> 170 | D12: =$D$7*$H$12 -> 136 | E12: =$E$7*$H$12 -> 102 | F12: =$F$7*$H$12 -> 68 | G12: è | H12: 1
A13: Totals | B13: =SUM(B12:B12) -> 204 | C13: =SUM(C12:C12) -> 170 | D13: =SUM(D12:D12) -> 136 | E13: =SUM(E12:E12) -> 102 | F13: =SUM(F12) -> 68 | G13: =SUM(B13:F13) -> 680 | H13: =SUM(H12) -> 1
A15: For 26-50 riders 2 places
A16: Placings | B16: 1D | C16: 2D | D16: 3D | E16: 4D | F16: 5D
A17: 1st | B17: =$B$7*$H$17 -> 122.4 | C17: =$C$7*$H$17 -> 102 | D17: =$D$7*$H$17 -> 81.6 | E17: =$E$7*$H$17 -> 61.2 | F17: =$F$7*$H$17 -> 40.8 | G17: è | H17: 0.6
A18: 2nd | B18: =$B$7*$H$18 -> 81.6 | C18: =$C$7*$H$18 -> 68 | D18: =$D$7*$H$18 -> 54.4 | E18: =$E$7*$H$18 -> 40.8 | F18: =$F$7*$H$18 -> 27.2 | G18: è | H18: 0.4
A19: Totals | B19: =SUM(B17:B18) -> 204 | C19: =SUM(C17:C18) -> 170 | D19: =SUM(D17:D18) -> 136 | E19: =SUM(E17:E18) -> 102 | F19: =SUM(F17:F18) -> 68 | G19: =SUM(B19:F19) -> 680 | H19: =SUM(H17:H18) -> 1
A21: For 51-100 riders 3 places
A22: Placings | B22: 1D | C22: 2D | D22: 3D | E22: 4D | F22: 5D
A23: 1st | B23: =$B$7*$H$23 -> 102 | C23: =$C$7*$H$23 -> 85 | D23: =$D$7*$H$23 -> 68 | E23: =$E$7*$H$23 -> 51 | F23: =$F$7*$H$23 -> 34 | G23: è | H23: 0.5
A24: 2nd | B24: =$B$7*$H$24 -> 61.2 | C24: =$C$7*$H$24 -> 51 | D24: =$D$7*$H$24 -> 40.8 | E24: =$E$7*$H$24 -> 30.6 | F24: =$F$7*$H$24 -> 20.4 | G24: è | H24: 0.3
A25: 3rd | B25: =$B$7*$H$25 -> 40.8 | C25: =$C$7*$H$25 -> 34 | D25: =$D$7*$H$25 -> 27.2 | E25: =$E$7*$H$25 -> 20.4 | F25: =$F$7*$H$25 -> 13.6 | G25: è | H25: 0.2
A26: Totals | B26: =SUM(B23:B25) -> 204 | C26: =SUM(C23:C25) -> 170 | D26: =SUM(D23:D25) -> 136 | E26: =SUM(E23:E25) -> 102 | F26: =SUM(F23:F25) -> 68 | G26: =SUM(B26:F26) -> 680 | H26: =SUM(H23:H25) -> 1
A28: For 101-143 riders 4 places
A29: Placings | B29: 1D | C29: 2D | D29: 3D | E29: 4D | F29: 5D
A30: 1st | B30: =$B$7*$H$30 -> 81.6 | C30: =$C$7*$H$30 -> 68 | D30: =$D$7*$H$30 -> 54.4 | E30: =$E$7*$H$30 -> 40.8 | F30: =$F$7*$H$30 -> 27.2 | G30: è | H30: 0.4
A31: 2nd | B31: =$B$7*$H$31 -> 61.2 | C31: =$C$7*$H$31 -> 51 | D31: =$D$7*$H$31 -> 40.8 | E31: =$E$7*$H$31 -> 30.6 | F31: =$F$7*$H$31 -> 20.4 | G31: è | H31: 0.3
A32: 3rd | B32: =$B$7*$H$32 -> 40.8 | C32: =$C$7*$H$32 -> 34 | D32: =$D$7*$H$32 -> 27.2 | E32: =$E$7*$H$32 -> 20.4 | F32: =$F$7*$H$32 -> 13.6 | G32: è | H32: 0.2
A33: 4th | B33: =$B$7*$H$33 -> 20.4 | C33: =$C$7*$H$33 -> 17 | D33: =$D$7*$H$33 -> 13.6 | E33: =$E$7*$H$33 -> 10.2 | F33: =$F$7*$H$33 -> 6.8 | G33: è | H33: 0.1
A34: Totals | B34: =SUM(B30:B33) -> 204 | C34: =SUM(C30:C33) -> 170 | D34: =SUM(D30:D33) -> 136 | E34: =SUM(E30:E33) -> 102 | F34: =SUM(F30:F33) -> 68 | G34: =SUM(B34:F34) -> 680 | H34: =SUM(H30:H33) -> 1
A36: For 144-200 riders 5 places
A37: Placings | B37: 1D | C37: 2D | D37: 3D | E37: 4D | F37: 5D
A38: 1st | B38: =$B$7*$H$38 -> 67.32 | C38: =$C$7*$H$38 -> 56.1 | D38: 709.5 | E38: =$E$7*$H$38 -> 33.66 | F38: =$F$7*$H$38 -> 22.44 | G38: è | H38: 0.33
A39: 2nd | B39: =$B$7*$H$39 -> 55.08 | C39: =$C$7*$H$39 -> 45.9 | D39: 580.5 | E39: =$E$7*$H$39 -> 27.54 | F39: =$F$7*$H$39 -> 18.36 | G39: è | H39: 0.27
A40: 3rd | B40: =$B$7*$H$40 -> 40.8 | C40: =$C$7*$H$40 -> 34 | D40: 430 | E40: =$E$7*$H$40 -> 20.4 | F40: =$F$7*$H$40 -> 13.6 | G40: è | H40: 0.2
A41: 4th | B41: =$B$7*$H$41 -> 26.52 | C41: =$C$7*$H$41 -> 22.1 | D41: 279.5 | E41: =$E$7*$H$41 -> 13.26 | F41: =$F$7*$H$41 -> 8.84 | G41: è | H41: 0.13
A42: 5th | B42: =$B$7*$H$42 -> 14.28 | C42: =$C$7*$H$42 -> 11.9 | D42: 150.5 | E42: =$E$7*$H$42 -> 7.14 | F42: =$F$7*$H$42 -> 4.76 | G42: è | H42: 0.07
A43: Totals | B43: =SUM(B38:B42) -> 204 | C43: =SUM(C38:C42) -> 170 | D43: =SUM(D38:D42) -> 2150 | E43: =SUM(E38:E42) -> 102 | F43: =SUM(F38:F42) -> 68 | G43: =SUM(B43:F43) -> 2694 | H43: =SUM(H38:H42) -> 1
A45: For 201-250 riders 6 places
A46: Placings | B46: 1D | C46: 2D | D46: 3D | E46: 4D | F46: 5D
A47: 1st | B47: =$B$7*$H$47 -> 59.16 | C47: =$C$7*$H$47 -> 49.3 | D47: =$D$7*$H$47 -> 39.44 | E47: =$E$7*$H$47 -> 29.58 | F47: =$F$7*$H$47 -> 19.72 | G47: è | H47: 0.29
A48: 2nd | B48: =$B$7*$H$48 -> 48.96 | C48: =$C$7*$H$48 -> 40.8 | D48: =$D$7*$H$48 -> 32.64 | E48: =$E$7*$H$48 -> 24.48 | F48: =$F$7*$H$48 -> 16.32 | G48: è | H48: 0.24
A49: 3rd | B49: =$B$7*$H$49 -> 38.76 | C49: =$C$7*$H$49 -> 32.3 | D49: =$D$7*$H$49 -> 25.84 | E49: =$E$7*$H$49 -> 19.38 | F49: =$F$7*$H$49 -> 12.92 | G49: è | H49: 0.19
A50: 4th | B50: =$B$7*$H$50 -> 28.56 | C50: =$C$7*$H$50 -> 23.8 | D50: =$D$7*$H$50 -> 19.04 | E50: =$E$7*$H$50 -> 14.28 | F50: =$F$7*$H$50 -> 9.52 | G50: è | H50: 0.14
A51: 5th | B51: =$B$7*$H$51 -> 18.36 | C51: =$C$7*$H$51 -> 15.3 | D51: =$D$7*$H$51 -> 12.24 | E51: =$E$7*$H$51 -> 9.18 | F51: =$F$7*$H$51 -> 6.12 | G51: è | H51: 0.09
A52: 6th | B52: =$B$7*$H$52 -> 10.2 | C52: =$C$7*$H$52 -> 8.5 | D52: =$D$7*$H$52 -> 6.8 | E52: =$E$7*$H$52 -> 5.1 | F52: =$F$7*$H$52 -> 3.4 | G52: è | H52: 0.05
A53: Totals | B53: =SUM(B47:B52) -> 204 | C53: =SUM(C47:C52) -> 170 | D53: =SUM(D47:D52) -> 136 | E53: =SUM(E47:E52) -> 102 | F53: =SUM(F47:F52) -> 68 | G53: =SUM(B53:F53) -> 680 | H53: =SUM(H47:H52) -> 1
A55: For 251-333 riders 8 places
A56: Placings | B56: 1D | C56: 2D | D56: 3D | E56: 4D | F56: 5D
A57: 1st | B57: =$B$7*$H$57 -> 48.96 | C57: =$C$7*$H$57 -> 40.8 | D57: =$D$7*$H$57 -> 32.64 | E57: =$E$7*$H$57 -> 24.48 | F57: =$F$7*$H$57 -> 16.32 | G57: è | H57: 0.24
A58: 2nd | B58: =$B$7*$H$58 -> 40.8 | C58: =$C$7*$H$58 -> 34 | D58: =$D$7*$H$58 -> 27.2 | E58: =$E$7*$H$58 -> 20.4 | F58: =$F$7*$H$58 -> 13.6 | G58: è | H58: 0.2
A59: 3rd | B59: =$B$7*$H$59 -> 34.68 | C59: =$C$7*$H$59 -> 28.9 | D59: =$D$7*$H$59 -> 23.12 | E59: =$E$7*$H$59 -> 17.34 | F59: =$F$7*$H$59 -> 11.56 | G59: è | H59: 0.17
A60: 4th | B60: =$B$7*$H$60 -> 26.52 | C60: =$C$7*$H$60 -> 22.1 | D60: =$D$7*$H$60 -> 17.68 | E60: =$E$7*$H$60 -> 13.26 | F60: =$F$7*$H$60 -> 8.84 | G60: è | H60: 0.13
A61: 5th | B61: =$B$7*$H$61 -> 20.4 | C61: =$C$7*$H$61 -> 17 | D61: =$D$7*$H$61 -> 13.6 | E61: =$E$7*$H$61 -> 10.2 | F61: =$F$7*$H$61 -> 6.8 | G61: è | H61: 0.1
A62: 6th | B62: =$B$7*$H$62 -> 14.28 | C62: =$C$7*$H$62 -> 11.9 | D62: =$D$7*$H$62 -> 9.52 | E62: =$E$7*$H$62 -> 7.14 | F62: =$F$7*$H$62 -> 4.76 | G62: è | H62: 0.07
A63: 7th | B63: =$B$7*$H$63 -> 10.2 | C63: =$C$7*$H$63 -> 8.5 | D63: =$D$7*$H$63 -> 6.8 | E63: =$E$7*$H$63 -> 5.1 | F63: =$F$7*$H$63 -> 3.4 | G63: è | H63: 0.05
A64: 8th | B64: =$B$7*$H$64 -> 8.16 | C64: =$C$7*$H$64 -> 6.8 | D64: =$D$7*$H$64 -> 5.44 | E64: =$E$7*$H$64 -> 4.08 | F64: =$F$7*$H$64 -> 2.72 | G64: è | H64: 0.04
A65: Totals | B65: =SUM(B57:B64) -> 204 | C65: =SUM(C57:C64) -> 170 | D65: =SUM(D57:D64) -> 136 | E65: =SUM(E57:E64) -> 102 | F65: =SUM(F57:F64) -> 68 | G65: =SUM(B65:F65) -> 680 | H65: =SUM(H57:H64) -> 1
A67: For 334-500 riders 10 places
A68: Placings | B68: 1D | C68: 2D | D68: 3D | E68: 4D | F68: 5D
A69: 1st | B69: =$B$7*$H$69 -> 42.84 | C69: =$C$7*$H$69 -> 35.7 | D69: =$D$7*$H$69 -> 28.56 | E69: =$E$7*$H$69 -> 21.42 | F69: =$F$7*$H$69 -> 14.28 | G69: è | H69: 0.21
A70: 2nd | B70: =$B$7*$H$70 -> 36.72 | C70: =$C$7*$H$70 -> 30.6 | D70: =$D$7*$H$70 -> 24.48 | E70: =$E$7*$H$70 -> 18.36 | F70: =$F$7*$H$70 -> 12.24 | G70: è | H70: 0.18
A71: 3rd | B71: =$B$7*$H$71 -> 30.6 | C71: =$C$7*$H$71 -> 25.5 | D71: =$D$7*$H$71 -> 20.4 | E71: =$E$7*$H$71 -> 15.3 | F71: =$F$7*$H$71 -> 10.2 | G71: è | H71: 0.15
A72: 4th | B72: =$B$7*$H$72 -> 24.48 | C72: =$C$7*$H$72 -> 20.4 | D72: =$D$7*$H$72 -> 16.32 | E72: =$E$7*$H$72 -> 12.24 | F72: =$F$7*$H$72 -> 8.16 | G72: è | H72: 0.12
A73: 5th | B73: =$B$7*$H$73 -> 18.36 | C73: =$C$7*$H$73 -> 15.3 | D73: =$D$7*$H$73 -> 12.24 | E73: =$E$7*$H$73 -> 9.18 | F73: =$F$7*$H$73 -> 6.12 | G73: è | H73: 0.09
A74: 6th | B74: =$B$7*$H$74 -> 14.28 | C74: =$C$7*$H$74 -> 11.9 | D74: =$D$7*$H$74 -> 9.52 | E74: =$E$7*$H$74 -> 7.14 | F74: =$F$7*$H$74 -> 4.76 | G74: è | H74: 0.07
A75: 7th | B75: =$B$7*$H$75 -> 12.24 | C75: =$C$7*$H$75 -> 10.2 | D75: =$D$7*$H$75 -> 8.16 | E75: =$E$7*$H$75 -> 6.12 | F75: =$F$7*$H$75 -> 4.08 | G75: è | H75: 0.06
A76: 8th | B76: =$B$7*$H$76 -> 10.2 | C76: =$C$7*$H$76 -> 8.5 | D76: =$D$7*$H$76 -> 6.8 | E76: =$E$7*$H$76 -> 5.1 | F76: =$F$7*$H$76 -> 3.4 | G76: è | H76: 0.05
A77: 9th | B77: =$B$7*$H$77 -> 8.16 | C77: =$C$7*$H$77 -> 6.8 | D77: =$D$7*$H$77 -> 5.44 | E77: =$E$7*$H$77 -> 4.08 | F77: =$F$7*$H$77 -> 2.72 | G77: è | H77: 0.04
A78: 10th | B78: =$B$7*$H$78 -> 6.12 | C78: =$C$7*$H$78 -> 5.1 | D78: =$D$7*$H$78 -> 4.08 | E78: =$E$7*$H$78 -> 3.06 | F78: =$F$7*$H$78 -> 2.04 | G78: è | H78: 0.03
A79: Totals | B79: =SUM(B69:B78) -> 204 | C79: =SUM(C69:C78) -> 170 | D79: 136 | E79: 102 | F79: 68 | G79: =SUM(B79:F79) -> 680 | H79: =SUM(H69:H78) -> 1
A81: For 501-666 riders 12 places
A82: Placings | B82: 1D | C82: 2D | D82: 3D | E82: 4D | F82: 5D
A83: 1st | B83: =$B$7*$H$83 -> 38.76 | C83: =$C$7*$H$83 -> 32.3 | D83: =$D$7*$H$83 -> 25.84 | E83: =$E$7*$H$83 -> 19.38 | F83: =$F$7*$H$83 -> 12.92 | G83: è | H83: 0.19
A84: 2nd | B84: =$B$7*$H$84 -> 30.6 | C84: =$C$7*$H$84 -> 25.5 | D84: =$D$7*$H$84 -> 20.4 | E84: =$E$7*$H$84 -> 15.3 | F84: =$F$7*$H$84 -> 10.2 | G84: è | H84: 0.15
A85: 3rd | B85: =$B$7*$H$85 -> 24.48 | C85: =$C$7*$H$85 -> 20.4 | D85: =$D$7*$H$85 -> 16.32 | E85: =$E$7*$H$85 -> 12.24 | F85: =$F$7*$H$85 -> 8.16 | G85: è | H85: 0.12
A86: 4th | B86: =$B$7*$H$86 -> 20.4 | C86: =$C$7*$H$86 -> 17 | D86: =$D$7*$H$86 -> 13.6 | E86: =$E$7*$H$86 -> 10.2 | F86: =$F$7*$H$86 -> 6.8 | G86: è | H86: 0.1
A87: 5th | B87: =$B$7*$H$87 -> 18.36 | C87: =$C$7*$H$87 -> 15.3 | D87: =$D$7*$H$87 -> 12.24 | E87: =$E$7*$H$87 -> 9.18 | F87: =$F$7*$H$87 -> 6.12 | G87: è | H87: 0.09
A88: 6th | B88: =$B$7*$H$88 -> 16.32 | C88: =$C$7*$H$88 -> 13.6 | D88: =$D$7*$H$88 -> 10.88 | E88: =$E$7*$H$88 -> 8.16 | F88: =$F$7*$H$88 -> 5.44 | G88: è | H88: 0.08
A89: 7th | B89: =$B$7*$H$89 -> 14.28 | C89: =$C$7*$H$89 -> 11.9 | D89: =$D$7*$H$89 -> 9.52 | E89: =$E$7*$H$89 -> 7.14 | F89: =$F$7*$H$89 -> 4.76 | G89: è | H89: 0.07
A90: 8th | B90: =$B$7*$H$90 -> 12.24 | C90: =$C$7*$H$90 -> 10.2 | D90: =$D$7*$H$90 -> 8.16 | E90: =$E$7*$H$90 -> 6.12 | F90: =$F$7*$H$90 -> 4.08 | G90: è | H90: 0.06
A91: 9th | B91: =$B$7*$H$91 -> 10.2 | C91: =$C$7*$H$91 -> 8.5 | D91: =$D$7*$H$91 -> 6.8 | E91: =$E$7*$H$91 -> 5.1 | F91: =$F$7*$H$91 -> 3.4 | G91: è | H91: 0.05
A92: 10th | B92: =$B$7*$H$92 -> 8.16 | C92: =$C$7*$H$92 -> 6.8 | D92: =$D$7*$H$92 -> 5.44 | E92: =$E$7*$H$92 -> 4.08 | F92: =$F$7*$H$92 -> 2.72 | G92: è | H92: 0.04
A93: 11th | B93: =$B$7*$H$93 -> 6.12 | C93: =$C$7*$H$93 -> 5.1 | D93: =$D$7*$H$93 -> 4.08 | E93: =$E$7*$H$93 -> 3.06 | F93: =$F$7*$H$93 -> 2.04 | G93: è | H93: 0.03
A94: 12th | B94: =$B$7*$H$94 -> 4.08 | C94: =$C$7*$H$94 -> 3.4 | D94: =$D$7*$H$94 -> 2.72 | E94: =$E$7*$H$94 -> 2.04 | F94: =$F$7*$H$94 -> 1.36 | G94: è | H94: 0.02
A95: Totals | B95: =SUM(B83:B94) -> 204 | C95: =SUM(C83:C94) -> 170 | D95: =SUM(D83:D94) -> 136 | E95: =SUM(E83:E94) -> 102 | F95: =SUM(F83:F94) -> 68 | G95: =SUM(B95:F95) -> 680 | H95: =SUM(H83:H94) -> 1
A97: For 667-1000 riders 15 places
A98: Placings | B98: 1D | C98: 2D | D98: 3D | E98: 4D | F98: 5D
A99: 1st | B99: =$B$7*$H$99 -> 36.72 | C99: =$C$7*$H$99 -> 30.6 | D99: =$D$7*$H$99 -> 24.48 | E99: =$E$7*$H$99 -> 18.36 | F99: =$F$7*$H$99 -> 12.24 | G99: è | H99: 0.18
A100: 2nd | B100: =$B$7*$H$100 -> 30.6 | C100: =$C$7*$H$100 -> 25.5 | D100: =$D$7*$H$100 -> 20.4 | E100: =$E$7*$H$100 -> 15.3 | F100: =$F$7*$H$100 -> 10.2 | G100: è | H100: 0.15
A101: 3rd | B101: =$B$7*$H$101 -> 24.48 | C101: =$C$7*$H$101 -> 20.4 | D101: =$D$7*$H$101 -> 16.32 | E101: =$E$7*$H$101 -> 12.24 | F101: =$F$7*$H$101 -> 8.16 | G101: è | H101: 0.12
A102: 4th | B102: =$B$7*$H$102 -> 20.4 | C102: =$C$7*$H$102 -> 17 | D102: =$D$7*$H$102 -> 13.6 | E102: =$E$7*$H$102 -> 10.2 | F102: =$F$7*$H$102 -> 6.8 | G102: è | H102: 0.1
A103: 5th | B103: =$B$7*$H$103 -> 17.34 | C103: =$C$7*$H$103 -> 14.45 | D103: =$D$7*$H$103 -> 11.56 | E103: =$E$7*$H$103 -> 8.67 | F103: =$F$7*$H$103 -> 5.78 | G103: è | H103: 0.085
A104: 6th | B104: =$B$7*$H$104 -> 14.28 | C104: =$C$7*$H$104 -> 11.9 | D104: =$D$7*$H$104 -> 9.52 | E104: =$E$7*$H$104 -> 7.14 | F104: =$F$7*$H$104 -> 4.76 | G104: è | H104: 0.07
A105: 7th | B105: =$B$7*$H$105 -> 12.24 | C105: =$C$7*$H$105 -> 10.2 | D105: =$D$7*$H$105 -> 8.16 | E105: =$E$7*$H$105 -> 6.12 | F105: =$F$7*$H$105 -> 4.08 | G105: è | H105: 0.06
A106: 8th | B106: =$B$7*$H$106 -> 10.2 | C106: =$C$7*$H$106 -> 8.5 | D106: =$D$7*$H$106 -> 6.8 | E106: =$E$7*$H$106 -> 5.1 | F106: =$F$7*$H$106 -> 3.4 | G106: è | H106: 0.05
A107: 9th | B107: =$B$7*$H$107 -> 8.67 | C107: =$C$7*$H$107 -> 7.225 | D107: =$D$7*$H$107 -> 5.78 | E107: =$E$7*$H$107 -> 4.335 | F107: =$F$7*$H$107 -> 2.89 | G107: è | H107: 0.0425
A108: 10th | B108: =$B$7*$H$108 -> 7.14 | C108: =$C$7*$H$108 -> 5.95 | D108: =$D$7*$H$108 -> 4.76 | E108: =$E$7*$H$108 -> 3.57 | F108: =$F$7*$H$108 -> 2.38 | G108: è | H108: 0.035
A109: 11th | B109: =$B$7*$H$109 -> 6.12 | C109: =$C$7*$H$109 -> 5.1 | D109: =$D$7*$H$109 -> 4.08 | E109: =$E$7*$H$109 -> 3.06 | F109: =$F$7*$H$109 -> 2.04 | G109: è | H109: 0.03
A110: 12th | B110: =$B$7*$H$110 -> 5.1 | C110: =$C$7*$H$110 -> 4.25 | D110: =$D$7*$H$110 -> 3.4 | E110: =$E$7*$H$110 -> 2.55 | F110: =$F$7*$H$110 -> 1.7 | G110: è | H110: 0.025
A111: 13th | B111: =$B$7*$H$111 -> 4.08 | C111: =$C$7*$H$111 -> 3.4 | D111: =$D$7*$H$111 -> 2.72 | E111: =$E$7*$H$111 -> 2.04 | F111: =$F$7*$H$111 -> 1.36 | G111: è | H111: 0.02
A112: 14th | B112: =$B$7*$H$112 -> 3.57 | C112: =$C$7*$H$112 -> 2.975 | D112: =$D$7*$H$112 -> 2.38 | E112: =$E$7*$H$112 -> 1.785 | F112: =$F$7*$H$112 -> 1.19 | G112: è | H112: 0.0175
A113: 15th | B113: =$B$7*$H$113 -> 3.06 | C113: =$C$7*$H$113 -> 2.55 | D113: =$D$7*$H$113 -> 2.04 | E113: =$E$7*$H$113 -> 1.53 | F113: =$F$7*$H$113 -> 1.02 | G113: è | H113: 0.015
A114: Totals | B114: =SUM(B99:B113) -> 204 | C114: =SUM(C99:C113) -> 170 | D114: =SUM(D99:D113) -> 136 | E114: =SUM(E99:E113) -> 102 | F114: =SUM(F99:F113) -> 68 | G114: =SUM(B114:F114) -> 680 | H114: =SUM(H99:H113) -> 1
A116: For 1001-1500 riders 20 places
A117: Placings | B117: 1D | C117: 2D | D117: 3D | E117: 4D | F117: 5D
A118: 1st | B118: =$B$7*$H$118 -> 28.56 | C118: =$C$7*$H$118 -> 23.8 | D118: =$D$7*$H$118 -> 19.04 | E118: =$E$7*$H$118 -> 14.28 | F118: =$F$7*$H$118 -> 9.52 | G118: è | H118: 0.14
A119: 2nd | B119: =$B$7*$H$119 -> 22.44 | C119: =$C$7*$H$119 -> 18.7 | D119: =$D$7*$H$119 -> 14.96 | E119: =$E$7*$H$119 -> 11.22 | F119: =$F$7*$H$119 -> 7.48 | G119: è | H119: 0.11
A120: 3rd | B120: =$B$7*$H$120 -> 18.36 | C120: =$C$7*$H$120 -> 15.3 | D120: =$D$7*$H$120 -> 12.24 | E120: =$E$7*$H$120 -> 9.18 | F120: =$F$7*$H$120 -> 6.12 | G120: è | H120: 0.09
A121: 4th | B121: =$B$7*$H$121 -> 15.708 | C121: =$C$7*$H$121 -> 13.09 | D121: =$D$7*$H$121 -> 10.472 | E121: =$E$7*$H$121 -> 7.854 | F121: =$F$7*$H$121 -> 5.236 | G121: è | H121: 0.077
A122: 5th | B122: =$B$7*$H$122 -> 14.28 | C122: =$C$7*$H$122 -> 11.9 | D122: =$D$7*$H$122 -> 9.52 | E122: =$E$7*$H$122 -> 7.14 | F122: =$F$7*$H$122 -> 4.76 | G122: è | H122: 0.07
A123: 6th | B123: =$B$7*$H$123 -> 13.26 | C123: =$C$7*$H$123 -> 11.05 | D123: =$D$7*$H$123 -> 8.84 | E123: =$E$7*$H$123 -> 6.63 | F123: =$F$7*$H$123 -> 4.42 | G123: è | H123: 0.065
A124: 7th | B124: =$B$7*$H$124 -> 12.24 | C124: =$C$7*$H$124 -> 10.2 | D124: =$D$7*$H$124 -> 8.16 | E124: =$E$7*$H$124 -> 6.12 | F124: =$F$7*$H$124 -> 4.08 | G124: è | H124: 0.06
A125: 8th | B125: =$B$7*$H$125 -> 11.22 | C125: =$C$7*$H$125 -> 9.35 | D125: =$D$7*$H$125 -> 7.48 | E125: =$E$7*$H$125 -> 5.61 | F125: =$F$7*$H$125 -> 3.74 | G125: è | H125: 0.055
A126: 9th | B126: =$B$7*$H$126 -> 10.2 | C126: =$C$7*$H$126 -> 8.5 | D126: =$D$7*$H$126 -> 6.8 | E126: =$E$7*$H$126 -> 5.1 | F126: =$F$7*$H$126 -> 3.4 | G126: è | H126: 0.05
A127: 10th | B127: =$B$7*$H$127 -> 9.18 | C127: =$C$7*$H$127 -> 7.65 | D127: =$D$7*$H$127 -> 6.12 | E127: =$E$7*$H$127 -> 4.59 | F127: =$F$7*$H$127 -> 3.06 | G127: è | H127: 0.045
A128: 11th | B128: =$B$7*$H$128 -> 8.16 | C128: =$C$7*$H$128 -> 6.8 | D128: =$D$7*$H$128 -> 5.44 | E128: =$E$7*$H$128 -> 4.08 | F128: =$F$7*$H$128 -> 2.72 | G128: è | H128: 0.04
A129: 12th | B129: =$B$7*$H$129 -> 7.548 | C129: =$C$7*$H$129 -> 6.29 | D129: =$D$7*$H$129 -> 5.032 | E129: =$E$7*$H$129 -> 3.774 | F129: =$F$7*$H$129 -> 2.516 | G129: è | H129: 0.037
A130: 13th | B130: =$B$7*$H$130 -> 6.732 | C130: =$C$7*$H$130 -> 5.61 | D130: =$D$7*$H$130 -> 4.488 | E130: =$E$7*$H$130 -> 3.366 | F130: =$F$7*$H$130 -> 2.244 | G130: è | H130: 0.033
A131: 14th | B131: =$B$7*$H$131 -> 5.916 | C131: =$C$7*$H$131 -> 4.93 | D131: =$D$7*$H$131 -> 3.944 | E131: =$E$7*$H$131 -> 2.958 | F131: =$F$7*$H$131 -> 1.972 | G131: è | H131: 0.029
A132: 15th | B132: =$B$7*$H$132 -> 5.1 | C132: =$C$7*$H$132 -> 4.25 | D132: =$D$7*$H$132 -> 3.4 | E132: =$E$7*$H$132 -> 2.55 | F132: =$F$7*$H$132 -> 1.7 | G132: è | H132: 0.025
A133: 16th | B133: =$B$7*$H$133 -> 4.284 | C133: =$C$7*$H$133 -> 3.57 | D133: =$D$7*$H$133 -> 2.856 | E133: =$E$7*$H$133 -> 2.142 | F133: =$F$7*$H$133 -> 1.428 | G133: è | H133: 0.021
A134: 17th | B134: =$B$7*$H$134 -> 3.468 | C134: =$C$7*$H$134 -> 2.89 | D134: =$D$7*$H$134 -> 2.312 | E134: =$E$7*$H$134 -> 1.734 | F134: =$F$7*$H$134 -> 1.156 | G134: è | H134: 0.017
A135: 18th | B135: =$B$7*$H$135 -> 2.856 | C135: =$C$7*$H$135 -> 2.38 | D135: =$D$7*$H$135 -> 1.904 | E135: =$E$7*$H$135 -> 1.428 | F135: =$F$7*$H$135 -> 0.952 | G135: è | H135: 0.014
A136: 19th | B136: =$B$7*$H$136 -> 2.448 | C136: =$C$7*$H$136 -> 2.04 | D136: =$D$7*$H$136 -> 1.632 | E136: =$E$7*$H$136 -> 1.224 | F136: =$F$7*$H$136 -> 0.816 | G136: è | H136: 0.012
A137: 20th | B137: =$B$7*$H$137 -> 2.04 | C137: =$C$7*$H$137 -> 1.7 | D137: =$D$7*$H$137 -> 1.36 | E137: =$E$7*$H$137 -> 1.02 | F137: =$F$7*$H$137 -> 0.68 | G137: è | H137: 0.01
A138: Totals | B138: =SUM(B118:B137) -> 204 | C138: =SUM(C118:C137) -> 170 | D138: 136 | E138: 102 | F138: 68 | G138: =SUM(B138:F138) -> 680 | H138: =SUM(H118:H137) -> 1
A140: For 1501 or More riders 30 places
A141: Placings | B141: 1D | C141: 2D | D141: 3D | E141: 4D | F141: 5D
A142: 1st | B142: =$B$7*$H142 -> 24.48 | C142: =$C$7*$H142 -> 20.4 | D142: =$D$7*$H142 -> 16.32 | E142: =$E$7*$H142 -> 12.24 | F142: =$F$7*$H142 -> 8.16 | G142: è | H142: 0.12
A143: 2nd | B143: =$B$7*$H143 -> 19.38 | C143: 16.15 | D143: 12.92 | E143: 9.69 | F143: 6.46 | G143: è | H143: 0.095
A144: 3rd | B144: =$B$7*$H144 -> 14.892 | C144: 12.41 | D144: 9.928 | E144: 7.446 | F144: 4.964 | G144: è | H144: 0.073
A145: 4th | B145: =$B$7*$H145 -> 12.648 | C145: 10.54 | D145: 8.432 | E145: 6.324 | F145: 4.216 | G145: è | H145: 0.062
A146: 5th | B146: 10.2 | C146: 8.5 | D146: 6.8 | E146: 5.1 | F146: 3.4 | G146: è | H146: 0.05
A147: 6th | B147: 9.18 | C147: 7.65 | D147: 6.12 | E147: 4.59 | F147: 3.06 | G147: è | H147: 0.045
A148: 7th | B148: 8.772 | C148: 7.31 | D148: 5.848 | E148: 4.386 | F148: 2.924 | G148: è | H148: 0.043
A149: 8th | B149: 8.16 | C149: 6.8 | D149: 5.44 | E149: 4.08 | F149: 2.72 | G149: è | H149: 0.04
A150: 9th | B150: 7.548 | C150: 6.29 | D150: 5.032 | E150: 3.774 | F150: 2.516 | G150: è | H150: 0.037
A151: 10th | B151: 7.14 | C151: 5.95 | D151: 4.76 | E151: 3.57 | F151: 2.38 | G151: è | H151: 0.035
A152: 11th | B152: 6.732 | C152: 5.61 | D152: 4.488 | E152: 3.366 | F152: 2.244 | G152: è | H152: 0.033
A153: 12th | B153: 6.324 | C153: 5.27 | D153: 4.216 | E153: 3.162 | F153: 2.108 | G153: è | H153: 0.031
A154: 13th | B154: 5.916 | C154: 4.93 | D154: 3.944 | E154: 2.958 | F154: 1.972 | G154: è | H154: 0.029
A155: 14th | B155: 5.508 | C155: 4.59 | D155: 3.672 | E155: 2.754 | F155: 1.836 | G155: è | H155: 0.027
A156: 15th | B156: 5.1 | C156: 4.25 | D156: 3.4 | E156: 2.55 | F156: 1.7 | G156: è | H156: 0.025
A157: 16th | B157: 4.896 | C157: 4.08 | D157: 3.264 | E157: 2.448 | F157: 1.632 | G157: è | H157: 0.024
A158: 17th | B158: 4.692 | C158: 3.91 | D158: 3.128 | E158: 2.346 | F158: 1.564 | G158: è | H158: 0.023
A159: 18th | B159: 4.488 | C159: 3.74 | D159: 2.992 | E159: 2.244 | F159: 1.496 | G159: è | H159: 0.022
A160: 19th | B160: 4.284 | C160: 3.57 | D160: 2.856 | E160: 2.142 | F160: 1.428 | G160: è | H160: 0.021
A161: 20th | B161: 4.08 | C161: 3.4 | D161: 2.72 | E161: 2.04 | F161: 1.36 | G161: è | H161: 0.02
A162: 21st | B162: 3.876 | C162: 3.23 | D162: 2.584 | E162: 1.938 | F162: 1.292 | G162: è | H162: 0.019
A163: 22nd | B163: 3.672 | C163: 3.06 | D163: 2.448 | E163: 1.836 | F163: 1.224 | G163: è | H163: 0.018
A164: 23rd | B164: 3.468 | C164: 2.89 | D164: 2.312 | E164: 1.734 | F164: 1.156 | G164: è | H164: 0.017
A165: 24th | B165: 3.264 | C165: 2.72 | D165: 2.176 | E165: 1.632 | F165: 1.088 | G165: è | H165: 0.016
A166: 25th | B166: 3.06 | C166: 2.55 | D166: 2.04 | E166: 1.53 | F166: 1.02 | G166: è | H166: 0.015
A167: 26th | B167: 2.856 | C167: 2.38 | D167: 1.904 | E167: 1.428 | F167: 0.952 | G167: è | H167: 0.014
A168: 27th | B168: 2.652 | C168: 2.21 | D168: 1.768 | E168: 1.326 | F168: 0.884 | G168: è | H168: 0.013
A169: 28th | B169: 2.448 | C169: 2.04 | D169: 1.632 | E169: 1.224 | F169: 0.816 | G169: è | H169: 0.012
A170: 29th | B170: 2.244 | C170: 1.87 | D170: 1.496 | E170: 1.122 | F170: 0.748 | G170: è | H170: 0.011
A171: 30th | B171: 2.04 | C171: 1.7 | D171: 1.36 | E171: 1.02 | F171: 0.68 | G171: è | H171: 0.01
A172: Totals | B172: =SUM(B142:B171) -> 204 | C172: =SUM(C142:C171) -> 170 | D172: 136 | E172: 102 | F172: 68 | G172: =SUM(B172:F172) -> 680 | H172: =SUM(H142:H171) -> 1

Sheet DON'T TOUCH (hidden)
A2: Yes | C2: S | D2: 5 | E2: X
C3: A | D3: 10
C4: Y | D4: 15
C5: P | D5: BP
D6: SCR
